Workbook

Sheet Grafik
B9: Finanzierungsbedarf
B10: 200000
B12: mögliche monatliche Rate
B13: 1000
B15: Zinsbindung in Monaten
B16: 120
B18: Sollzinssatz 1. Zinsbindung
B19: 0.025
B21: Bauspartarif D2023
B22: Premium 2,25% / 2,00%
B26: Berechnung
B27: =Vergleich!G3 -> OK
C48: Hilfsfelder
C50: ="Finanzierung "&TEXT(Vergleich!$D$8,"###.0")&" EUR, Sollzinssatz "&TEXT(Vergleich!$D$11,"0,00%")&" bei "&TEXT(Vergleich!$D$10/12,"0")&" Jahren Zinsbindung" -> Finanzierung 200.000 EUR, Sollzinssatz 2,50% bei 10 Jahren Zinsbindung
C51: ="Klassische Finanzierung"&CHAR(10)&"Annuitätendarlehen "&TEXT(Vergleich!$D$8,"###.0")&" EUR" -> Klassische Finanzierung Annuitätendarlehen 200.000 EUR
C52: ="Finanzierung mit Zinsgarantie"&CHAR(10)&"Annuitätendarlehen "&TEXT(Vergleich!$D$8,"###.0")&" EUR"&CHAR(10)&"Bausparvertrag "&TEXT(Vergleich!$J$20,"###.0")&" EUR" -> Finanzierung mit Zinsgarantie Annuitätendarlehen 200.000 EUR Bausparvertrag 103.800 EUR
C53: ="* unterstellt wurde ein Tilgungsbeitrag von "&TEXT(Vergleich!$J$39,"###.0,00")&" EUR" -> * unterstellt wurde ein Tilgungsbeitrag von 420,00 EUR
C54: ="Jahr 1-"&TEXT(Vergleich!$D$10/12,"0") -> Jahr 1-10
C55: ="Jahr "&TEXT(Vergleich!$D$10/12+1,"0")&"-?" -> Jahr 11-?
C56: =TEXT(Vergleich!$J$43,"###.0")&" EUR"&CHAR(10)&"weniger"&CHAR(10)&"Zinsänderungsrisiko!" -> 47.062 EUR weniger Zinsänderungsrisiko!
C58: =C59 -> 1000 | E58: =E59 -> 120566.3682 | H58: Zins und Tilgung Annuitätendarlehen | J58: Restschuld Annuitätendarlehen
C59: =Vergleich!$D$9 -> 1000 | E59: =Vergleich!$D$33 -> 120566.3682 | H59: =TEXT(C59,"###.0")&CHAR(10)&"EUR" -> 1.000 EUR | J59: =TEXT(E59,"###.0")&CHAR(10)&"EUR" -> 120.566 EUR
C60: =C59 -> 1000 | E60: =E59 -> 120566.3682 | J60: Zinssatz = ?
C61: =C62 -> 583.3333333 | D61: =D62 -> 416.6666667 | E61: =E62 -> 73504.67663 | F61: =F62 -> 55853.89667 | H61: Zins und 1% Tilgung Annuitätendarlehen | I61: Sparrate Bausparvertrag | J61: Restschuld Annuitätendarlehen | K61: Anspruch Bauspardarlehen*
C62: =Vergleich!$J$23 -> 583.3333333 | D62: =Vergleich!$J$22 -> 416.6666667 | E62: =Vergleich!$J$41 -> 73504.67663 | F62: =MAX(Vergleich!$J$37,F66) -> 55853.89667 | H62: =TEXT(C62,"###.0")&CHAR(10)&"EUR" -> 583 EUR | I62: =TEXT(D62,"###.0")&CHAR(10)&"EUR" -> 417 EUR | J62: =TEXT(E62,"###.0")&CHAR(10)&"EUR" -> 73.505 EUR | K62: =TEXT(F65,"###.0")&CHAR(10)&"EUR" -> 55.854 EUR
E63: =E62 -> 73504.67663 | F63: =F62 -> 55853.89667 | J63: Zinssatz = ? | K63: ="Zinssatz = "&TEXT(Vergleich!$J$38,"0,00%") -> Zinssatz = 2,00%
F65: =Vergleich!$J$37 -> 55853.89667
F66: =E62/3 -> 24501.55888

Sheet Vergleich (hidden)
B2: Prämissen zum Modellvergleich | G2: Berechnung | J2: Hinweise
C3: Zuteilung = ZAP-Termin | G3: =IF(OR(AND(D12="Komfort 0,45%",BauSPARvertrag!F9<BauSPARvertrag!F2*BauSPARvertrag!F10),AND(D12="Komfort 0,45%",BauSPARvertrag!F9>BauSPARvertrag!F2*BauSPARvertrag!F11),AND(D12="Komfort 1,95%",BauSPARvertrag!F9<BauSPARvertrag!F2*BauSPARvertrag!F10),AND(D12="Komfort 1,95%",BauSPARvertrag!F9>BauSPARvertrag!F2*BauSPARvertrag!F11),AND(D12="Premium 1,50% / 1,25%",BauSPARvertrag!F9<BauSPARvertrag!F2*BauSPARvertrag!F10),AND(D12="Premium 1,50% / 1,25%",BauSPARvertrag!F9>BauSPARvertrag!F2*BauSPARvertrag!F11),AND(D12="Premium 2,25% / 2,00%",BauSPARvertrag!F9<BauSPARvertrag!F2*BauSPARvertrag!F10),AND(D12="Premium 2,25% / 2,00%",BauSPARvertrag!F9>BauSPARvertrag!F2*BauSPARvertrag!F11),AND(D12="Spezial",BauSPARvertrag!F9<BauSPARvertrag!F2*BauSPARvertrag!F10),AND(D12="Spezial",BauSPARvertrag!F9>BauSPARvertrag!F2*BauSPARvertrag!F11)),"NOK",IF(AND(OR(D12="Komfort 0,45%",D12="Komfort 1,95%",D12="Premium 1,50% / 1,25%",D12="Premium 2,25% / 2,00%"),BauSPARvertrag!F2<10000),"NOK",IF(AND(D12="Spezial",BauSPARvertrag!F2<250000),"NOK",IF(D26<>J28,"NOK",IF(J41<0,"NOK","OK"))))) -> OK | J3: zur Zuteilung | L3: =IF(J28="Zut. > 15 Jahre","Zuteilungsdauer zu lang - Bausparsumme reduzieren",IF(D26<>J28,"Zuteilung ungleich ZAP-Termin - bitte Bausparsumme erhöhen bzw. reduzieren","-")) -> -
C4: mtl. Belastung identisch | J4: zur Bausparsumme | L4: =IF(AND(OR(D12="Komfort 0,45%",D12="Komfort 1,95%",D12="Premium 1,50% / 1,25%",D12="Premium 2,25% / 2,00%"),(D8*BauSPARvertrag!F2)<10000),"Bausparsumme mindestens 10.000 EUR",IF(AND(D12="Spezial",D8*BauSPARvertrag!F2<250000),"Bausparsumme mindestens 250.000 EUR","-")) -> -
J5: zum Tilgungsbeitrag | L5: =IF(OR(AND(D12="Komfort 0,45%",BauSPARvertrag!F9<BauSPARvertrag!F2*BauSPARvertrag!F10),AND(D12="Komfort 0,45%",BauSPARvertrag!F9>BauSPARvertrag!F2*BauSPARvertrag!F11)),"Tilgungsbeitrag im Komfort 0,45%: 10,0 Promille",IF(OR(AND(D12="Komfort 1,95%",BauSPARvertrag!F9<BauSPARvertrag!F2*BauSPARvertrag!F10),AND(D12="Komfort 1,95%",BauSPARvertrag!F9>BauSPARvertrag!F2*BauSPARvertrag!F11)),"Tilgungsbeitrag im Komfort 1,95%: 3,5 Promille",IF(OR(AND(D12="Premium 1,50% / 1,25%",BauSPARvertrag!F9<BauSPARvertrag!F2*BauSPARvertrag!F10),AND(D12="Premium 1,50% / 1,25%",BauSPARvertrag!F9>BauSPARvertrag!F2*BauSPARvertrag!F11)),"Tilgungsbeitrag im Premium 1,50% / 1,25%: 4,0 Promille bis 8,0 Promille",IF(OR(AND(D12="Premium 2,25% / 2,00%",BauSPARvertrag!F9<BauSPARvertrag!F2*BauSPARvertrag!F10),AND(D12="Premium 2,25% / 2,00%",BauSPARvertrag!F9>BauSPARvertrag!F2*BauSPARvertrag!F11)),"Tilgungsbeitrag im Premium 2,25% / 2,00%: 4,0 Promille bis 8,0 Promille",IF(OR(AND(D12="Spezial",BauSPARvertrag!F9<BauSPARvertrag!F2*BauSPARvertrag!F10),AND(D12="Spezial",BauSPARvertrag!F9>BauSPARvertrag!F2*BauSPARvertrag!F11)),"Tilgungsbeitrag im Spezial: 4,5 Promille bis 8,0 Promille","-"))))) -> -
B8: Finanzierungsbedarf | D8: =Grafik!B10 -> 200000 | G8: =IF(G3="NOK","Tilgungsbeitrag in EUR","") ->  | J8: =IF(G3="NOK",BauSPARvertrag!F9,"") -> 
B9: mögliche monatliche Rate | D9: =Grafik!B13 -> 1000 | G9: =IF(G3="NOK","Tilgungsbeitrag in Promille","") ->  | J9: =IF(G3="NOK",J8/BauSPARvertrag!F2*1000,"") -> 
B10: Zinsbindung in Monaten | D10: =Grafik!B16 -> 120
B11: Sollzinssatz 1. Zinsbindung | D11: =Grafik!B19 -> 0.025 | G11: =IF(G3="NOK","Zinsanpassungstermin","") ->  | J11: =IF(G3="NOK",J26,"") -> 
B12: Bauspartarif D2020 | D12: =Grafik!B22 -> Premium 2,25% / 2,00% | G12: =IF(G3="NOK","Zuteilungstermin","") ->  | J12: =IF(G3="NOK",J28,"") -> 
B15: Vollfinanzierung durch Annuitätendarlehen | G15: Finanzierung durch Annuitätendarlehen mit BSV
G16: Informationen zum Bausparvertrag
B18: anfängl. Direkttilgung p.a. | D18: =((D9*12)/D8)-D11 -> 0.035 | G18: anfängl. Direkttilgung p.a. | J18: ='WDC mit BSV'!D7 -> 0.01
G20: Bausparsumme | J20: =BauSPARvertrag!F2 -> 103800
G22: mtl. Sparrate BSV | J22: =BauSPARvertrag!F8 -> 416.6666667
G23: mtl. Rate Annuitätendarlehen | J23: =J24-J22 -> 583.3333333
B24: mtl. Belastung | D24: ='WDC ohne BSV'!D12 -> 1000 | G24: mtl. Belastung inkl. BSV | J24: ='WDC mit BSV'!D12+BauSPARvertrag!F8 -> 1000
B26: ZAP-Termin | D26: ='WDC ohne BSV'!G4 -> 2033-04-01 | G26: ZAP-Termin | J26: ='WDC mit BSV'!G4 -> 2033-04-01
G28: Zuteilung | J28: =IF(BauSPARvertrag!K198<5,"Zut. > 15 Jahre",BauSPARvertrag!B1) -> 2033-04-01
B31: Finanzierungsbedarf der zweiten Zinsbindung | G31: Finanzierungsbedarf der zweiten Zinsbindung
B33: Restschuld zum ZAP | D33: ='WDC ohne BSV'!G6 -> 120566.3682 | G33: Restschuld zum ZAP | J33: ='WDC mit BSV'!G6 -> 177304.6766
G35: abzgl. Bausparguthaben | J35: =IF(J28="Zut. > 15 Jahre","",BauSPARvertrag!B6) -> 47946.10333
G37: abzgl. Bauspardarlehen | J37: =IF(J28="Zut. > 15 Jahre","",BauSPARvertrag!B7) -> 55853.89667
G38: Bauspardarlehenszinssatz | J38: =IF(D12="Komfort 0,45%","0,45%",IF(D12="Komfort 1,95%","1,95%",IF(D12="Spezial","1,60%",IF(AND(D12="Premium 1,50% / 1,25%",J20<100000),"1,50%",IF(AND(D12="Premium 1,50% / 1,25%",OR(J20=100000,J20>100000)),"1,25%",IF(AND(D12="Premium 2,25% / 2,00%",J20<100000),"2,25%",IF(AND(D12="Premium 2,25% / 2,00%",OR(J20=100000,J20>100000)),"2,00%",""))))))) -> 2,00%
G39: Tilgungsbeitrag | J39: =BauSPARvertrag!F9 -> 420
B41: Finanzierungsbedarf | D41: =D33 -> 120566.3682 | G41: Finanzierungsbedarf | J41: =IF(J28="Zut. > 15 Jahre","",J33-J35-J37) -> 73504.67663
G43: Reduzierung Zinsrisiko für | J43: =IF(J28="Zut. > 15 Jahre","",D41-J41) -> 47061.69156

Sheet WDC ohne BSV (hidden)
A2: erste Zinsbindung
B4: Darlehensbetrag | D4: =Vergleich!D8 -> 200000 | F4: ZAP | G4: =VLOOKUP(1,H11:I199,2,FALSE) -> 2033-04-01
B5: Zinsbindung in Monaten | D5: =Vergleich!D10 -> 120 | F5: Zinskosten | G5: =SUM(E12:E200) -> 40566.36819
B6: Sollzins | D6: =Vergleich!D11 -> 0.025 | F6: Restschuld | G6: =VLOOKUP(1,H11:J199,3,FALSE) -> 120566.3682
B7: anfäng. Direkttilgung | D7: =Vergleich!D18 -> 0.035
A10: Umsatz | B10: Monat | C10: Saldo alt | D10: Annuität | E10: Zinsrate | F10: Tilgungsrate | G10: Saldo neu | H10: ZAP | I10: ZAP | J10: Restschuld
A11: =D4*-1 -> -200000 | B11: =DATE(YEAR(TODAY()),MONTH(TODAY())+1,1) -> 2023-04-01 | G11: =A11+F11 -> -200000 | H11: =IF(B11=DATE(YEAR($B$11),MONTH($B$11)+$D$5,DAY($B$11)),1,IF(B11>DATE(YEAR($B$11),MONTH($B$11)+$D$5,DAY($B$11)),H10+1,0)) -> 0 | I11: =IF(H11=1,B11,"") ->  | J11: =IF(H11=1,G11*-1,"") -> 
B12: =EDATE(B11,1) -> 2023-05-01 | C12: =IF(H11>0,"",G11) -> -200000 | D12: =IF(H11>0,"",$D$4*($D$6+$D$7)/12) -> 1000 | E12: =IF(H11>0,"",G11*$D$6/12*-1) -> 416.6666667 | F12: =IF(H11>0,"",D12-E12) -> 583.3333333 | G12: =IF(H11>0,"",C12+F12) -> -199416.6667 | H12: =IF(B12=DATE(YEAR($B$11),MONTH($B$11)+$D$5,DAY($B$11)),1,IF(B12>DATE(YEAR($B$11),MONTH($B$11)+$D$5,DAY($B$11)),H11+1,0)) -> 0 | I12: =IF(H12=1,B12,"") ->  | J12: =IF(H12=1,G12*-1,"") -> 
B13: =EDATE(B12,1) -> 2023-06-01 | C13: =IF(H12>0,"",G12) -> -199416.6667 | D13: =IF(H12>0,"",$D$4*($D$6+$D$7)/12) -> 1000 | E13: =IF(H12>0,"",G12*$D$6/12*-1) -> 415.4513889 | F13: =IF(H12>0,"",D13-E13) -> 584.5486111 | G13: =IF(H12>0,"",C13+F13) -> -198832.1181 | H13: 0
B14: 2023-07-01 | C14: -198832.1181 | D14: 1000 | E14: 414.2335793 | F14: 585.7664207 | G14: -198246.3516 | H14: 0
B15: 2023-08-01 | C15: -198246.3516 | D15: 1000 | E15: 413.0132326 | F15: 586.9867674 | G15: -197659.3649 | H15: 0
B16: 2023-09-01 | C16: -197659.3649 | D16: 1000 | E16: 411.7903435 | F16: 588.2096565 | G16: -197071.1552 | H16: 0
B17: 2023-10-01 | C17: -197071.1552 | D17: 1000 | E17: 410.5649067 | F17: 589.4350933 | G17: -196481.7201 | H17: 0
B18: 2023-11-01 | C18: -196481.7201 | D18: 1000 | E18: 409.3369169 | F18: 590.6630831 | G18: -195891.057 | H18: 0
B19: 2023-12-01 | C19: -195891.057 | D19: 1000 | E19: 408.1063688 | F19: 591.8936312 | G19: -195299.1634 | H19: 0
B20: 2024-01-01 | C20: -195299.1634 | D20: 1000 | E20: 406.8732571 | F20: 593.1267429 | G20: -194706.0367 | H20: 0
B21: 2024-02-01 | C21: -194706.0367 | D21: 1000 | E21: 405.6375764 | F21: 594.3624236 | G21: -194111.6742 | H21: 0
B22: 2024-03-01 | C22: -194111.6742 | D22: 1000 | E22: 404.3993213 | F22: 595.6006787 | G22: -193516.0736 | H22: 0
B23: 2024-04-01 | C23: -193516.0736 | D23: 1000 | E23: 403.1584866 | F23: 596.8415134 | G23: -192919.232 | H23: 0
B24: 2024-05-01 | C24: -192919.232 | D24: 1000 | E24: 401.9150668 | F24: 598.0849332 | G24: -192321.1471 | H24: 0
B25: 2024-06-01 | C25: -192321.1471 | D25: 1000 | E25: 400.6690565 | F25: 599.3309435 | G25: -191721.8162 | H25: 0
B26: 2024-07-01 | C26: -191721.8162 | D26: 1000 | E26: 399.4204503 | F26: 600.5795497 | G26: -191121.2366 | H26: 0
B27: 2024-08-01 | C27: -191121.2366 | D27: 1000 | E27: 398.169243 | F27: 601.830757 | G27: -190519.4059 | H27: 0
B28: 2024-09-01 | C28: -190519.4059 | D28: 1000 | E28: 396.9154289 | F28: 603.0845711 | G28: -189916.3213 | H28: 0
B29: 2024-10-01 | C29: -189916.3213 | D29: 1000 | E29: 395.6590027 | F29: 604.3409973 | G29: -189311.9803 | H29: 0
B30: 2024-11-01 | C30: -189311.9803 | D30: 1000 | E30: 394.3999589 | F30: 605.6000411 | G30: -188706.3803 | H30: 0
B31: 2024-12-01 | C31: -188706.3803 | D31: 1000 | E31: 393.1382922 | F31: 606.8617078 | G31: -188099.5185 | H31: 0
B32: 2025-01-01 | C32: -188099.5185 | D32: 1000 | E32: 391.873997 | F32: 608.126003 | G32: -187491.3925 | H32: 0
B33: 2025-02-01 | C33: -187491.3925 | D33: 1000 | E33: 390.6070678 | F33: 609.3929322 | G33: -186881.9996 | H33: 0
B34: 2025-03-01 | C34: -186881.9996 | D34: 1000 | E34: 389.3374992 | F34: 610.6625008 | G34: -186271.3371 | H34: 0
B35: 2025-04-01 | C35: -186271.3371 | D35: 1000 | E35: 388.0652856 | F35: 611.9347144 | G35: -185659.4024 | H35: 0
B36: 2025-05-01 | C36: -185659.4024 | D36: 1000 | E36: 386.7904217 | F36: 613.2095783 | G36: -185046.1928 | H36: 0
B37: 2025-06-01 | C37: -185046.1928 | D37: 1000 | E37: 385.5129017 | F37: 614.4870983 | G37: -184431.7057 | H37: 0
B38: 2025-07-01 | C38: -184431.7057 | D38: 1000 | E38: 384.2327202 | F38: 615.7672798 | G38: -183815.9384 | H38: 0
B39: 2025-08-01 | C39: -183815.9384 | D39: 1000 | E39: 382.9498717 | F39: 617.0501283 | G39: -183198.8883 | H39: 0
B40: 2025-09-01 | C40: -183198.8883 | D40: 1000 | E40: 381.6643506 | F40: 618.3356494 | G40: -182580.5527 | H40: 0
B41: 2025-10-01 | C41: -182580.5527 | D41: 1000 | E41: 380.3761514 | F41: 619.6238486 | G41: -181960.9288 | H41: 0
B42: 2025-11-01 | C42: -181960.9288 | D42: 1000 | E42: 379.0852684 | F42: 620.9147316 | G42: -181340.0141 | H42: 0
B43: 2025-12-01 | C43: -181340.0141 | D43: 1000 | E43: 377.791696 | F43: 622.208304 | G43: -180717.8058 | H43: 0
B44: 2026-01-01 | C44: -180717.8058 | D44: 1000 | E44: 376.4954287 | F44: 623.5045713 | G44: -180094.3012 | H44: 0
B45: 2026-02-01 | C45: -180094.3012 | D45: 1000 | E45: 375.1964608 | F45: 624.8035392 | G45: -179469.4977 | H45: 0
B46: 2026-03-01 | C46: -179469.4977 | D46: 1000 | E46: 373.8947868 | F46: 626.1052132 | G46: -178843.3925 | H46: 0
B47: 2026-04-01 | C47: -178843.3925 | D47: 1000 | E47: 372.5904009 | F47: 627.4095991 | G47: -178215.9829 | H47: 0
B48: 2026-05-01 | C48: -178215.9829 | D48: 1000 | E48: 371.2832976 | F48: 628.7167024 | G48: -177587.2662 | H48: 0
B49: 2026-06-01 | C49: -177587.2662 | D49: 1000 | E49: 369.9734711 | F49: 630.0265289 | G49: -176957.2396 | H49: 0
B50: 2026-07-01 | C50: -176957.2396 | D50: 1000 | E50: 368.6609159 | F50: 631.3390841 | G50: -176325.9005 | H50: 0
B51: 2026-08-01 | C51: -176325.9005 | D51: 1000 | E51: 367.3456261 | F51: 632.6543739 | G51: -175693.2462 | H51: 0
B52: 2026-09-01 | C52: -175693.2462 | D52: 1000 | E52: 366.0275962 | F52: 633.9724038 | G52: -175059.2738 | H52: 0
B53: 2026-10-01 | C53: -175059.2738 | D53: 1000 | E53: 364.7068203 | F53: 635.2931797 | G53: -174423.9806 | H53: 0
B54: 2026-11-01 | C54: -174423.9806 | D54: 1000 | E54: 363.3832929 | F54: 636.6167071 | G54: -173787.3639 | H54: 0
B55: 2026-12-01 | C55: -173787.3639 | D55: 1000 | E55: 362.0570081 | F55: 637.9429919 | G55: -173149.4209 | H55: 0
B56: 2027-01-01 | C56: -173149.4209 | D56: 1000 | E56: 360.7279602 | F56: 639.2720398 | G56: -172510.1488 | H56: 0
B57: 2027-02-01 | C57: -172510.1488 | D57: 1000 | E57: 359.3961434 | F57: 640.6038566 | G57: -171869.545 | H57: 0
B58: 2027-03-01 | C58: -171869.545 | D58: 1000 | E58: 358.0615521 | F58: 641.9384479 | G58: -171227.6065 | H58: 0
B59: 2027-04-01 | C59: -171227.6065 | D59: 1000 | E59: 356.7241803 | F59: 643.2758197 | G59: -170584.3307 | H59: 0
B60: 2027-05-01 | C60: -170584.3307 | D60: 1000 | E60: 355.3840223 | F60: 644.6159777 | G60: -169939.7147 | H60: 0
B61: 2027-06-01 | C61: -169939.7147 | D61: 1000 | E61: 354.0410724 | F61: 645.9589276 | G61: -169293.7558 | H61: 0
B62: 2027-07-01 | C62: -169293.7558 | D62: 1000 | E62: 352.6953246 | F62: 647.3046754 | G62: -168646.4511 | H62: 0
B63: 2027-08-01 | C63: -168646.4511 | D63: 1000 | E63: 351.3467732 | F63: 648.6532268 | G63: -167997.7979 | H63: 0
B64: 2027-09-01 | C64: -167997.7979 | D64: 1000 | E64: 349.9954123 | F64: 650.0045877 | G64: -167347.7933 | H64: 0
B65: 2027-10-01 | C65: -167347.7933 | D65: 1000 | E65: 348.6412361 | F65: 651.3587639 | G65: -166696.4346 | H65: 0
B66: 2027-11-01 | C66: -166696.4346 | D66: 1000 | E66: 347.2842387 | F66: 652.7157613 | G66: -166043.7188 | H66: 0
B67: 2027-12-01 | C67: -166043.7188 | D67: 1000 | E67: 345.9244142 | F67: 654.0755858 | G67: -165389.6432 | H67: 0
B68: 2028-01-01 | C68: -165389.6432 | D68: 1000 | E68: 344.5617567 | F68: 655.4382433 | G68: -164734.205 | H68: 0
B69: 2028-02-01 | C69: -164734.205 | D69: 1000 | E69: 343.1962603 | F69: 656.8037397 | G69: -164077.4012 | H69: 0
B70: 2028-03-01 | C70: -164077.4012 | D70: 1000 | E70: 341.8279192 | F70: 658.1720808 | G70: -163419.2291 | H70: 0
B71: 2028-04-01 | C71: -163419.2291 | D71: 1000 | E71: 340.4567274 | F71: 659.5432726 | G71: -162759.6859 | H71: 0
B72: 2028-05-01 | C72: -162759.6859 | D72: 1000 | E72: 339.0826789 | F72: 660.9173211 | G72: -162098.7686 | H72: 0
B73: 2028-06-01 | C73: -162098.7686 | D73: 1000 | E73: 337.7057678 | F73: 662.2942322 | G73: -161436.4743 | H73: 0
B74: 2028-07-01 | C74: -161436.4743 | D74: 1000 | E74: 336.3259882 | F74: 663.6740118 | G74: -160772.8003 | H74: 0
B75: 2028-08-01 | C75: -160772.8003 | D75: 1000 | E75: 334.943334 | F75: 665.056666 | G75: -160107.7436 | H75: 0
B76: 2028-09-01 | C76: -160107.7436 | D76: 1000 | E76: 333.5577993 | F76: 666.4422007 | G76: -159441.3014 | H76: =IF(B76=DATE(YEAR($B$11),MONTH($B$11)+$D$5,DAY($B$11)),1,IF(B76>DATE(YEAR($B$11),MONTH($B$11)+$D$5,DAY($B$11)),H75+1,0)) -> 0 | I76: =IF(H76=1,B76,"") ->  | J76: =IF(H76=1,G76*-1,"") -> 
B77: =EDATE(B76,1) -> 2028-10-01 | C77: =IF(H76>0,"",G76) -> -159441.3014 | D77: =IF(H76>0,"",$D$4*($D$6+$D$7)/12) -> 1000 | E77: =IF(H76>0,"",G76*$D$6/12*-1) -> 332.169378 | F77: =IF(H76>0,"",D77-E77) -> 667.830622 | G77: =IF(H76>0,"",C77+F77) -> -158773.4708 | H77: 0
B78: 2028-11-01 | C78: -158773.4708 | D78: 1000 | E78: 330.7780642 | F78: 669.2219358 | G78: -158104.2489 | H78: 0
B79: 2028-12-01 | C79: -158104.2489 | D79: 1000 | E79: 329.3838518 | F79: 670.6161482 | G79: -157433.6327 | H79: 0
B80: 2029-01-01 | C80: -157433.6327 | D80: 1000 | E80: 327.9867349 | F80: 672.0132651 | G80: -156761.6195 | H80: 0
B81: 2029-02-01 | C81: -156761.6195 | D81: 1000 | E81: 326.5867072 | F81: 673.4132928 | G81: -156088.2062 | H81: 0
B82: 2029-03-01 | C82: -156088.2062 | D82: 1000 | E82: 325.1837629 | F82: 674.8162371 | G82: -155413.3899 | H82: 0
B83: 2029-04-01 | C83: -155413.3899 | D83: 1000 | E83: 323.7778957 | F83: 676.2221043 | G83: -154737.1678 | H83: 0
B84: 2029-05-01 | C84: -154737.1678 | D84: 1000 | E84: 322.3690997 | F84: 677.6309003 | G84: -154059.5369 | H84: 0
B85: 2029-06-01 | C85: -154059.5369 | D85: 1000 | E85: 320.9573686 | F85: 679.0426314 | G85: -153380.4943 | H85: 0
B86: 2029-07-01 | C86: -153380.4943 | D86: 1000 | E86: 319.5426965 | F86: 680.4573035 | G86: -152700.037 | H86: 0
B87: 2029-08-01 | C87: -152700.037 | D87: 1000 | E87: 318.1250771 | F87: 681.8749229 | G87: -152018.1621 | H87: 0
B88: 2029-09-01 | C88: -152018.1621 | D88: 1000 | E88: 316.7045043 | F88: 683.2954957 | G88: -151334.8666 | H88: 0
B89: 2029-10-01 | C89: -151334.8666 | D89: 1000 | E89: 315.280972 | F89: 684.719028 | G89: -150650.1476 | H89: 0
B90: 2029-11-01 | C90: -150650.1476 | D90: 1000 | E90: 313.8544741 | F90: 686.1455259 | G90: -149964.002 | H90: 0
B91: 2029-12-01 | C91: -149964.002 | D91: 1000 | E91: 312.4250042 | F91: 687.5749958 | G91: -149276.427 | H91: 0
B92: 2030-01-01 | C92: -149276.427 | D92: 1000 | E92: 310.9925563 | F92: 689.0074437 | G92: -148587.4196 | H92: 0
B93: 2030-02-01 | C93: -148587.4196 | D93: 1000 | E93: 309.5571241 | F93: 690.4428759 | G93: -147896.9767 | H93: 0
B94: 2030-03-01 | C94: -147896.9767 | D94: 1000 | E94: 308.1187015 | F94: 691.8812985 | G94: -147205.0954 | H94: 0
B95: 2030-04-01 | C95: -147205.0954 | D95: 1000 | E95: 306.6772821 | F95: 693.3227179 | G95: -146511.7727 | H95: 0
B96: 2030-05-01 | C96: -146511.7727 | D96: 1000 | E96: 305.2328598 | F96: 694.7671402 | G96: -145817.0056 | H96: 0
B97: 2030-06-01 | C97: -145817.0056 | D97: 1000 | E97: 303.7854282 | F97: 696.2145718 | G97: -145120.791 | H97: 0
B98: 2030-07-01 | C98: -145120.791 | D98: 1000 | E98: 302.3349812 | F98: 697.6650188 | G98: -144423.126 | H98: 0
B99: 2030-08-01 | C99: -144423.126 | D99: 1000 | E99: 300.8815124 | F99: 699.1184876 | G99: -143724.0075 | H99: 0
B100: 2030-09-01 | C100: -143724.0075 | D100: 1000 | E100: 299.4250156 | F100: 700.5749844 | G100: -143023.4325 | H100: 0
B101: 2030-10-01 | C101: -143023.4325 | D101: 1000 | E101: 297.9654844 | F101: 702.0345156 | G101: -142321.398 | H101: 0
B102: 2030-11-01 | C102: -142321.398 | D102: 1000 | E102: 296.5029125 | F102: 703.4970875 | G102: -141617.9009 | H102: 0
B103: 2030-12-01 | C103: -141617.9009 | D103: 1000 | E103: 295.0372935 | F103: 704.9627065 | G103: -140912.9382 | H103: 0
B104: 2031-01-01 | C104: -140912.9382 | D104: 1000 | E104: 293.5686212 | F104: 706.4313788 | G104: -140206.5068 | H104: 0
B105: 2031-02-01 | C105: -140206.5068 | D105: 1000 | E105: 292.0968892 | F105: 707.9031108 | G105: -139498.6037 | H105: 0
B106: 2031-03-01 | C106: -139498.6037 | D106: 1000 | E106: 290.622091 | F106: 709.377909 | G106: -138789.2258 | H106: 0
B107: 2031-04-01 | C107: -138789.2258 | D107: 1000 | E107: 289.1442204 | F107: 710.8557796 | G107: -138078.37 | H107: 0
B108: 2031-05-01 | C108: -138078.37 | D108: 1000 | E108: 287.6632708 | F108: 712.3367292 | G108: -137366.0333 | H108: 0
B109: 2031-06-01 | C109: -137366.0333 | D109: 1000 | E109: 286.179236 | F109: 713.820764 | G109: -136652.2125 | H109: 0
B110: 2031-07-01 | C110: -136652.2125 | D110: 1000 | E110: 284.6921094 | F110: 715.3078906 | G110: -135936.9046 | H110: 0
B111: 2031-08-01 | C111: -135936.9046 | D111: 1000 | E111: 283.2018846 | F111: 716.7981154 | G111: -135220.1065 | H111: 0
B112: 2031-09-01 | C112: -135220.1065 | D112: 1000 | E112: 281.7085552 | F112: 718.2914448 | G112: -134501.8151 | H112: 0
B113: 2031-10-01 | C113: -134501.8151 | D113: 1000 | E113: 280.2121147 | F113: 719.7878853 | G113: -133782.0272 | H113: 0
B114: 2031-11-01 | C114: -133782.0272 | D114: 1000 | E114: 278.7125566 | F114: 721.2874434 | G114: -133060.7397 | H114: 0
B115: 2031-12-01 | C115: -133060.7397 | D115: 1000 | E115: 277.2098744 | F115: 722.7901256 | G115: -132337.9496 | H115: 0
B116: 2032-01-01 | C116: -132337.9496 | D116: 1000 | E116: 275.7040617 | F116: 724.2959383 | G116: -131613.6537 | H116: 0
B117: 2032-02-01 | C117: -131613.6537 | D117: 1000 | E117: 274.1951118 | F117: 725.8048882 | G117: -130887.8488 | H117: 0
B118: 2032-03-01 | C118: -130887.8488 | D118: 1000 | E118: 272.6830183 | F118: 727.3169817 | G118: -130160.5318 | H118: 0
B119: 2032-04-01 | C119: -130160.5318 | D119: 1000 | E119: 271.1677746 | F119: 728.8322254 | G119: -129431.6996 | H119: 0
B120: 2032-05-01 | C120: -129431.6996 | D120: 1000 | E120: 269.6493741 | F120: 730.3506259 | G120: -128701.3489 | H120: 0
B121: 2032-06-01 | C121: -128701.3489 | D121: 1000 | E121: 268.1278103 | F121: 731.8721897 | G121: -127969.4768 | H121: 0
B122: 2032-07-01 | C122: -127969.4768 | D122: 1000 | E122: 266.6030766 | F122: 733.3969234 | G122: -127236.0798 | H122: 0
B123: 2032-08-01 | C123: -127236.0798 | D123: 1000 | E123: 265.0751663 | F123: 734.9248337 | G123: -126501.155 | H123: 0
B124: 2032-09-01 | C124: -126501.155 | D124: 1000 | E124: 263.5440729 | F124: 736.4559271 | G124: -125764.6991 | H124: 0
B125: 2032-10-01 | C125: -125764.6991 | D125: 1000 | E125: 262.0097897 | F125: 737.9902103 | G125: -125026.7089 | H125: 0
B126: 2032-11-01 | C126: -125026.7089 | D126: 1000 | E126: 260.4723101 | F126: 739.5276899 | G126: -124287.1812 | H126: 0
B127: 2032-12-01 | C127: -124287.1812 | D127: 1000 | E127: 258.9316274 | F127: 741.0683726 | G127: -123546.1128 | H127: 0
B128: 2033-01-01 | C128: -123546.1128 | D128: 1000 | E128: 257.387735 | F128: 742.612265 | G128: -122803.5005 | H128: 0
B129: 2033-02-01 | C129: -122803.5005 | D129: 1000 | E129: 255.8406261 | F129: 744.1593739 | G129: -122059.3412 | H129: 0
B130: 2033-03-01 | C130: -122059.3412 | D130: 1000 | E130: 254.2902941 | F130: 745.7097059 | G130: -121313.6315 | H130: 0
B131: 2033-04-01 | C131: -121313.6315 | D131: 1000 | E131: 252.7367322 | F131: 747.2632678 | G131: -120566.3682 | H131: 1 | I131: 2033-04-01 | J131: 120566.3682
B132: 2033-05-01 | H132: 2
B133: 2033-06-01 | H133: 3
B134: 2033-07-01 | H134: 4
B135: 2033-08-01 | H135: 5
B136: 2033-09-01 | H136: 6
B137: 2033-10-01 | H137: 7
B138: 2033-11-01 | H138: 8
B139: 2033-12-01 | H139: 9
B140: 2034-01-01 | H140: =IF(B140=DATE(YEAR($B$11),MONTH($B$11)+$D$5,DAY($B$11)),1,IF(B140>DATE(YEAR($B$11),MONTH($B$11)+$D$5,DAY($B$11)),H139+1,0)) -> 10 | I140: =IF(H140=1,B140,"") ->  | J140: =IF(H140=1,G140*-1,"") -> 
B141: =EDATE(B140,1) -> 2034-02-01 | C141: =IF(H140>0,"",G140) ->  | D141: =IF(H140>0,"",$D$4*($D$6+$D$7)/12) ->  | E141: =IF(H140>0,"",G140*$D$6/12*-1) ->  | F141: =IF(H140>0,"",D141-E141) ->  | G141: =IF(H140>0,"",C141+F141) ->  | H141: 11
B142: 2034-03-01 | H142: 12
B143: 2034-04-01 | H143: 13
B144: 2034-05-01 | H144: 14
B145: 2034-06-01 | H145: 15
B146: 2034-07-01 | H146: 16
B147: 2034-08-01 | H147: 17
B148: 2034-09-01 | H148: 18
B149: 2034-10-01 | H149: 19
B150: 2034-11-01 | H150: 20
B151: 2034-12-01 | H151: 21
B152: 2035-01-01 | H152: 22
B153: 2035-02-01 | H153: 23
B154: 2035-03-01 | H154: 24
B155: 2035-04-01 | H155: 25
B156: 2035-05-01 | H156: 26
B157: 2035-06-01 | H157: 27
B158: 2035-07-01 | H158: 28
B159: 2035-08-01 | H159: 29
B160: 2035-09-01 | H160: 30
B161: 2035-10-01 | H161: 31
B162: 2035-11-01 | H162: 32
B163: 2035-12-01 | H163: 33
B164: 2036-01-01 | H164: 34
B165: 2036-02-01 | H165: 35
B166: 2036-03-01 | H166: 36
B167: 2036-04-01 | H167: 37
B168: 2036-05-01 | H168: 38
B169: 2036-06-01 | H169: 39
B170: 2036-07-01 | H170: 40
B171: 2036-08-01 | H171: 41
B172: 2036-09-01 | H172: 42
B173: 2036-10-01 | H173: 43
B174: 2036-11-01 | H174: 44
B175: 2036-12-01 | H175: 45
B176: 2037-01-01 | H176: 46
B177: 2037-02-01 | H177: 47
B178: 2037-03-01 | H178: 48
B179: 2037-04-01 | H179: 49
B180: 2037-05-01 | H180: 50
B181: 2037-06-01 | H181: 51
B182: 2037-07-01 | H182: 52
B183: 2037-08-01 | H183: 53
B184: 2037-09-01 | H184: 54
B185: 2037-10-01 | H185: 55
B186: 2037-11-01 | H186: 56
B187: 2037-12-01 | H187: 57
B188: 2038-01-01 | H188: 58
B189: 2038-02-01 | H189: 59
B190: 2038-03-01 | H190: 60
B191: 2038-04-01 | H191: 61
B192: 2038-05-01 | H192: 62
B193: 2038-06-01 | H193: 63
B194: 2038-07-01 | H194: 64
B195: 2038-08-01 | H195: 65
B196: 2038-09-01 | H196: 66
B197: 2038-10-01 | H197: 67
B198: 2038-11-01 | H198: 68
B199: 2038-12-01 | H199: 69

Sheet WDC mit BSV (hidden)
A2: erste Zinsbindung
B4: Darlehensbetrag | D4: =Vergleich!D8 -> 200000 | F4: ZAP | G4: =VLOOKUP(1,H11:I199,2,FALSE) -> 2033-04-01
B5: Zinsbindung in Monaten | D5: =Vergleich!D10 -> 120 | F5: Zinskosten | G5: =SUM(E12:E200) -> 47304.67663
B6: Sollzins | D6: =Vergleich!D11 -> 0.025 | F6: Restschuld | G6: =VLOOKUP(1,H11:J199,3,FALSE) -> 177304.6766
B7: anfäng. Direkttilgung | D7: 0.01
A10: Umsatz | B10: Monat | C10: Saldo alt | D10: Annuität | E10: Zinsrate | F10: Tilgungsrate | G10: Saldo neu | H10: ZAP | I10: ZAP | J10: Restschuld
A11: =D4*-1 -> -200000 | B11: =DATE(YEAR(TODAY()),MONTH(TODAY())+1,1) -> 2023-04-01 | G11: =A11+F11 -> -200000 | H11: =IF(B11=DATE(YEAR($B$11),MONTH($B$11)+$D$5,DAY($B$11)),1,IF(B11>DATE(YEAR($B$11),MONTH($B$11)+$D$5,DAY($B$11)),H10+1,0)) -> 0 | I11: =IF(H11=1,B11,"") ->  | J11: =IF(H11=1,G11*-1,"") -> 
B12: =EDATE(B11,1) -> 2023-05-01 | C12: =IF(H11>0,"",G11) -> -200000 | D12: =IF(H11>0,"",$D$4*($D$6+$D$7)/12) -> 583.3333333 | E12: =IF(H11>0,"",G11*$D$6/12*-1) -> 416.6666667 | F12: =IF(H11>0,"",D12-E12) -> 166.6666667 | G12: =IF(H11>0,"",C12+F12) -> -199833.3333 | H12: =IF(B12=DATE(YEAR($B$11),MONTH($B$11)+$D$5,DAY($B$11)),1,IF(B12>DATE(YEAR($B$11),MONTH($B$11)+$D$5,DAY($B$11)),H11+1,0)) -> 0 | I12: =IF(H12=1,B12,"") ->  | J12: =IF(H12=1,G12*-1,"") -> 
B13: =EDATE(B12,1) -> 2023-06-01 | C13: =IF(H12>0,"",G12) -> -199833.3333 | D13: =IF(H12>0,"",$D$4*($D$6+$D$7)/12) -> 583.3333333 | E13: =IF(H12>0,"",G12*$D$6/12*-1) -> 416.3194444 | F13: =IF(H12>0,"",D13-E13) -> 167.0138889 | G13: =IF(H12>0,"",C13+F13) -> -199666.3194 | H13: 0
B14: 2023-07-01 | C14: -199666.3194 | D14: 583.3333333 | E14: 415.9714988 | F14: 167.3618345 | G14: -199498.9576 | H14: 0
B15: 2023-08-01 | C15: -199498.9576 | D15: 583.3333333 | E15: 415.6228284 | F15: 167.710505 | G15: -199331.2471 | H15: 0
B16: 2023-09-01 | C16: -199331.2471 | D16: 583.3333333 | E16: 415.2734315 | F16: 168.0599019 | G16: -199163.1872 | H16: 0
B17: 2023-10-01 | C17: -199163.1872 | D17: 583.3333333 | E17: 414.9233067 | F17: 168.4100267 | G17: -198994.7772 | H17: 0
B18: 2023-11-01 | C18: -198994.7772 | D18: 583.3333333 | E18: 414.5724525 | F18: 168.7608809 | G18: -198826.0163 | H18: 0
B19: 2023-12-01 | C19: -198826.0163 | D19: 583.3333333 | E19: 414.2208673 | F19: 169.1124661 | G19: -198656.9038 | H19: 0
B20: 2024-01-01 | C20: -198656.9038 | D20: 583.3333333 | E20: 413.8685496 | F20: 169.4647837 | G20: -198487.439 | H20: 0
B21: 2024-02-01 | C21: -198487.439 | D21: 583.3333333 | E21: 413.515498 | F21: 169.8178353 | G21: -198317.6212 | H21: 0
B22: 2024-03-01 | C22: -198317.6212 | D22: 583.3333333 | E22: 413.1617109 | F22: 170.1716225 | G22: -198147.4496 | H22: 0
B23: 2024-04-01 | C23: -198147.4496 | D23: 583.3333333 | E23: 412.8071866 | F23: 170.5261467 | G23: -197976.9234 | H23: 0
B24: 2024-05-01 | C24: -197976.9234 | D24: 583.3333333 | E24: 412.4519238 | F24: 170.8814095 | G24: -197806.042 | H24: 0
B25: 2024-06-01 | C25: -197806.042 | D25: 583.3333333 | E25: 412.0959209 | F25: 171.2374124 | G25: -197634.8046 | H25: 0
B26: 2024-07-01 | C26: -197634.8046 | D26: 583.3333333 | E26: 411.7391763 | F26: 171.594157 | G26: -197463.2105 | H26: 0
B27: 2024-08-01 | C27: -197463.2105 | D27: 583.3333333 | E27: 411.3816885 | F27: 171.9516449 | G27: -197291.2588 | H27: 0
B28: 2024-09-01 | C28: -197291.2588 | D28: 583.3333333 | E28: 411.0234559 | F28: 172.3098775 | G28: -197118.9489 | H28: 0
B29: 2024-10-01 | C29: -197118.9489 | D29: 583.3333333 | E29: 410.664477 | F29: 172.6688564 | G29: -196946.2801 | H29: 0
B30: 2024-11-01 | C30: -196946.2801 | D30: 583.3333333 | E30: 410.3047502 | F30: 173.0285832 | G30: -196773.2515 | H30: 0
B31: 2024-12-01 | C31: -196773.2515 | D31: 583.3333333 | E31: 409.944274 | F31: 173.3890594 | G31: -196599.8624 | H31: 0
B32: 2025-01-01 | C32: -196599.8624 | D32: 583.3333333 | E32: 409.5830468 | F32: 173.7502866 | G32: -196426.1122 | H32: 0
B33: 2025-02-01 | C33: -196426.1122 | D33: 583.3333333 | E33: 409.221067 | F33: 174.1122663 | G33: -196251.9999 | H33: 0
B34: 2025-03-01 | C34: -196251.9999 | D34: 583.3333333 | E34: 408.8583331 | F34: 174.4750002 | G34: -196077.5249 | H34: 0
B35: 2025-04-01 | C35: -196077.5249 | D35: 583.3333333 | E35: 408.4948435 | F35: 174.8384898 | G35: -195902.6864 | H35: 0
B36: 2025-05-01 | C36: -195902.6864 | D36: 583.3333333 | E36: 408.1305967 | F36: 175.2027367 | G36: -195727.4837 | H36: 0
B37: 2025-06-01 | C37: -195727.4837 | D37: 583.3333333 | E37: 407.765591 | F37: 175.5677424 | G37: -195551.9159 | H37: 0
B38: 2025-07-01 | C38: -195551.9159 | D38: 583.3333333 | E38: 407.3998248 | F38: 175.9335085 | G38: -195375.9824 | H38: 0
B39: 2025-08-01 | C39: -195375.9824 | D39: 583.3333333 | E39: 407.0332967 | F39: 176.3000366 | G39: -195199.6824 | H39: 0
B40: 2025-09-01 | C40: -195199.6824 | D40: 583.3333333 | E40: 406.6660049 | F40: 176.6673284 | G40: -195023.015 | H40: 0
B41: 2025-10-01 | C41: -195023.015 | D41: 583.3333333 | E41: 406.297948 | F41: 177.0353853 | G41: -194845.9797 | H41: 0
B42: 2025-11-01 | C42: -194845.9797 | D42: 583.3333333 | E42: 405.9291243 | F42: 177.404209 | G42: -194668.5755 | H42: 0
B43: 2025-12-01 | C43: -194668.5755 | D43: 583.3333333 | E43: 405.5595322 | F43: 177.7738011 | G43: -194490.8017 | H43: 0
B44: 2026-01-01 | C44: -194490.8017 | D44: 583.3333333 | E44: 405.1891701 | F44: 178.1441632 | G44: -194312.6575 | H44: 0
B45: 2026-02-01 | C45: -194312.6575 | D45: 583.3333333 | E45: 404.8180364 | F45: 178.5152969 | G45: -194134.1422 | H45: 0
B46: 2026-03-01 | C46: -194134.1422 | D46: 583.3333333 | E46: 404.4461296 | F46: 178.8872038 | G46: -193955.255 | H46: 0
B47: 2026-04-01 | C47: -193955.255 | D47: 583.3333333 | E47: 404.0734479 | F47: 179.2598854 | G47: -193775.9951 | H47: 0
B48: 2026-05-01 | C48: -193775.9951 | D48: 583.3333333 | E48: 403.6999898 | F48: 179.6333435 | G48: -193596.3618 | H48: 0
B49: 2026-06-01 | C49: -193596.3618 | D49: 583.3333333 | E49: 403.3257537 | F49: 180.0075797 | G49: -193416.3542 | H49: 0
B50: 2026-07-01 | C50: -193416.3542 | D50: 583.3333333 | E50: 402.9507379 | F50: 180.3825955 | G50: -193235.9716 | H50: 0
B51: 2026-08-01 | C51: -193235.9716 | D51: 583.3333333 | E51: 402.5749408 | F51: 180.7583925 | G51: -193055.2132 | H51: 0
B52: 2026-09-01 | C52: -193055.2132 | D52: 583.3333333 | E52: 402.1983608 | F52: 181.1349725 | G52: -192874.0782 | H52: 0
B53: 2026-10-01 | C53: -192874.0782 | D53: 583.3333333 | E53: 401.8209963 | F53: 181.512337 | G53: -192692.5659 | H53: 0
B54: 2026-11-01 | C54: -192692.5659 | D54: 583.3333333 | E54: 401.4428456 | F54: 181.8904878 | G54: -192510.6754 | H54: 0
B55: 2026-12-01 | C55: -192510.6754 | D55: 583.3333333 | E55: 401.0639071 | F55: 182.2694263 | G55: -192328.406 | H55: 0
B56: 2027-01-01 | C56: -192328.406 | D56: 583.3333333 | E56: 400.6841791 | F56: 182.6491542 | G56: -192145.7568 | H56: 0
B57: 2027-02-01 | C57: -192145.7568 | D57: 583.3333333 | E57: 400.30366 | F57: 183.0296733 | G57: -191962.7271 | H57: 0
B58: 2027-03-01 | C58: -191962.7271 | D58: 583.3333333 | E58: 399.9223482 | F58: 183.4109851 | G58: -191779.3162 | H58: 0
B59: 2027-04-01 | C59: -191779.3162 | D59: 583.3333333 | E59: 399.540242 | F59: 183.7930913 | G59: -191595.5231 | H59: 0
B60: 2027-05-01 | C60: -191595.5231 | D60: 583.3333333 | E60: 399.1573397 | F60: 184.1759936 | G60: -191411.3471 | H60: 0
B61: 2027-06-01 | C61: -191411.3471 | D61: 583.3333333 | E61: 398.7736397 | F61: 184.5596936 | G61: -191226.7874 | H61: 0
B62: 2027-07-01 | C62: -191226.7874 | D62: 583.3333333 | E62: 398.3891404 | F62: 184.944193 | G62: -191041.8432 | H62: 0
B63: 2027-08-01 | C63: -191041.8432 | D63: 583.3333333 | E63: 398.00384 | F63: 185.3294934 | G63: -190856.5137 | H63: 0
B64: 2027-09-01 | C64: -190856.5137 | D64: 583.3333333 | E64: 397.6177369 | F64: 185.7155965 | G64: -190670.7981 | H64: 0
B65: 2027-10-01 | C65: -190670.7981 | D65: 583.3333333 | E65: 397.2308294 | F65: 186.102504 | G65: -190484.6956 | H65: 0
B66: 2027-11-01 | C66: -190484.6956 | D66: 583.3333333 | E66: 396.8431158 | F66: 186.4902175 | G66: -190298.2054 | H66: 0
B67: 2027-12-01 | C67: -190298.2054 | D67: 583.3333333 | E67: 396.4545945 | F67: 186.8787388 | G67: -190111.3266 | H67: 0
B68: 2028-01-01 | C68: -190111.3266 | D68: 583.3333333 | E68: 396.0652638 | F68: 187.2680695 | G68: -189924.0586 | H68: 0
B69: 2028-02-01 | C69: -189924.0586 | D69: 583.3333333 | E69: 395.675122 | F69: 187.6582113 | G69: -189736.4004 | H69: 0
B70: 2028-03-01 | C70: -189736.4004 | D70: 583.3333333 | E70: 395.2841674 | F70: 188.0491659 | G70: -189548.3512 | H70: 0
B71: 2028-04-01 | C71: -189548.3512 | D71: 583.3333333 | E71: 394.8923983 | F71: 188.440935 | G71: -189359.9102 | H71: 0
B72: 2028-05-01 | C72: -189359.9102 | D72: 583.3333333 | E72: 394.499813 | F72: 188.8335203 | G72: -189171.0767 | H72: 0
B73: 2028-06-01 | C73: -189171.0767 | D73: 583.3333333 | E73: 394.1064099 | F73: 189.2269235 | G73: -188981.8498 | H73: 0
B74: 2028-07-01 | C74: -188981.8498 | D74: 583.3333333 | E74: 393.7121871 | F74: 189.6211462 | G74: -188792.2287 | H74: 0
B75: 2028-08-01 | C75: -188792.2287 | D75: 583.3333333 | E75: 393.317143 | F75: 190.0161903 | G75: -188602.2125 | H75: 0
B76: 2028-09-01 | C76: -188602.2125 | D76: 583.3333333 | E76: 392.921276 | F76: 190.4120574 | G76: -188411.8004 | H76: =IF(B76=DATE(YEAR($B$11),MONTH($B$11)+$D$5,DAY($B$11)),1,IF(B76>DATE(YEAR($B$11),MONTH($B$11)+$D$5,DAY($B$11)),H75+1,0)) -> 0 | I76: =IF(H76=1,B76,"") ->  | J76: =IF(H76=1,G76*-1,"") -> 
B77: =EDATE(B76,1) -> 2028-10-01 | C77: =IF(H76>0,"",G76) -> -188411.8004 | D77: =IF(H76>0,"",$D$4*($D$6+$D$7)/12) -> 583.3333333 | E77: =IF(H76>0,"",G76*$D$6/12*-1) -> 392.5245842 | F77: =IF(H76>0,"",D77-E77) -> 190.8087491 | G77: =IF(H76>0,"",C77+F77) -> -188220.9917 | H77: 0
B78: 2028-11-01 | C78: -188220.9917 | D78: 583.3333333 | E78: 392.127066 | F78: 191.2062674 | G78: -188029.7854 | H78: 0
B79: 2028-12-01 | C79: -188029.7854 | D79: 583.3333333 | E79: 391.7287196 | F79: 191.6046138 | G79: -187838.1808 | H79: 0
B80: 2029-01-01 | C80: -187838.1808 | D80: 583.3333333 | E80: 391.3295433 | F80: 192.00379 | G80: -187646.177 | H80: 0
B81: 2029-02-01 | C81: -187646.177 | D81: 583.3333333 | E81: 390.9295354 | F81: 192.4037979 | G81: -187453.7732 | H81: 0
B82: 2029-03-01 | C82: -187453.7732 | D82: 583.3333333 | E82: 390.5286942 | F82: 192.8046392 | G82: -187260.9686 | H82: 0
B83: 2029-04-01 | C83: -187260.9686 | D83: 583.3333333 | E83: 390.1270178 | F83: 193.2063155 | G83: -187067.7622 | H83: 0
B84: 2029-05-01 | C84: -187067.7622 | D84: 583.3333333 | E84: 389.7245047 | F84: 193.6088287 | G84: -186874.1534 | H84: 0
B85: 2029-06-01 | C85: -186874.1534 | D85: 583.3333333 | E85: 389.3211529 | F85: 194.0121804 | G85: -186680.1412 | H85: 0
B86: 2029-07-01 | C86: -186680.1412 | D86: 583.3333333 | E86: 388.9169609 | F86: 194.4163724 | G86: -186485.7249 | H86: 0
B87: 2029-08-01 | C87: -186485.7249 | D87: 583.3333333 | E87: 388.5119268 | F87: 194.8214065 | G87: -186290.9035 | H87: 0
B88: 2029-09-01 | C88: -186290.9035 | D88: 583.3333333 | E88: 388.1060489 | F88: 195.2272845 | G88: -186095.6762 | H88: 0
B89: 2029-10-01 | C89: -186095.6762 | D89: 583.3333333 | E89: 387.6993253 | F89: 195.634008 | G89: -185900.0422 | H89: 0
B90: 2029-11-01 | C90: -185900.0422 | D90: 583.3333333 | E90: 387.2917545 | F90: 196.0415788 | G90: -185704.0006 | H90: 0
B91: 2029-12-01 | C91: -185704.0006 | D91: 583.3333333 | E91: 386.8833345 | F91: 196.4499988 | G91: -185507.5506 | H91: 0
B92: 2030-01-01 | C92: -185507.5506 | D92: 583.3333333 | E92: 386.4740637 | F92: 196.8592696 | G92: -185310.6913 | H92: 0
B93: 2030-02-01 | C93: -185310.6913 | D93: 583.3333333 | E93: 386.0639402 | F93: 197.2693931 | G93: -185113.4219 | H93: 0
B94: 2030-03-01 | C94: -185113.4219 | D94: 583.3333333 | E94: 385.6529623 | F94: 197.680371 | G94: -184915.7415 | H94: 0
B95: 2030-04-01 | C95: -184915.7415 | D95: 583.3333333 | E95: 385.2411282 | F95: 198.0922051 | G95: -184717.6493 | H95: 0
B96: 2030-05-01 | C96: -184717.6493 | D96: 583.3333333 | E96: 384.8284361 | F96: 198.5048972 | G96: -184519.1444 | H96: 0
B97: 2030-06-01 | C97: -184519.1444 | D97: 583.3333333 | E97: 384.4148843 | F97: 198.9184491 | G97: -184320.226 | H97: 0
B98: 2030-07-01 | C98: -184320.226 | D98: 583.3333333 | E98: 384.0004708 | F98: 199.3328625 | G98: -184120.8931 | H98: 0
B99: 2030-08-01 | C99: -184120.8931 | D99: 583.3333333 | E99: 383.585194 | F99: 199.7481393 | G99: -183921.145 | H99: 0
B100: 2030-09-01 | C100: -183921.145 | D100: 583.3333333 | E100: 383.1690521 | F100: 200.1642813 | G100: -183720.9807 | H100: 0
B101: 2030-10-01 | C101: -183720.9807 | D101: 583.3333333 | E101: 382.7520432 | F101: 200.5812902 | G101: -183520.3994 | H101: 0
B102: 2030-11-01 | C102: -183520.3994 | D102: 583.3333333 | E102: 382.3341655 | F102: 200.9991679 | G102: -183319.4003 | H102: 0
B103: 2030-12-01 | C103: -183319.4003 | D103: 583.3333333 | E103: 381.9154172 | F103: 201.4179161 | G103: -183117.9823 | H103: 0
B104: 2031-01-01 | C104: -183117.9823 | D104: 583.3333333 | E104: 381.4957965 | F104: 201.8375368 | G104: -182916.1448 | H104: 0
B105: 2031-02-01 | C105: -182916.1448 | D105: 583.3333333 | E105: 381.0753017 | F105: 202.2580317 | G105: -182713.8868 | H105: 0
B106: 2031-03-01 | C106: -182713.8868 | D106: 583.3333333 | E106: 380.6539308 | F106: 202.6794026 | G106: -182511.2074 | H106: 0
B107: 2031-04-01 | C107: -182511.2074 | D107: 583.3333333 | E107: 380.231682 | F107: 203.1016513 | G107: -182308.1057 | H107: 0
B108: 2031-05-01 | C108: -182308.1057 | D108: 583.3333333 | E108: 379.8085536 | F108: 203.5247798 | G108: -182104.5809 | H108: 0
B109: 2031-06-01 | C109: -182104.5809 | D109: 583.3333333 | E109: 379.3845436 | F109: 203.9487897 | G109: -181900.6321 | H109: 0
B110: 2031-07-01 | C110: -181900.6321 | D110: 583.3333333 | E110: 378.9596503 | F110: 204.373683 | G110: -181696.2585 | H110: 0
B111: 2031-08-01 | C111: -181696.2585 | D111: 583.3333333 | E111: 378.5338718 | F111: 204.7994615 | G111: -181491.459 | H111: 0
B112: 2031-09-01 | C112: -181491.459 | D112: 583.3333333 | E112: 378.1072063 | F112: 205.2261271 | G112: -181286.2329 | H112: 0
B113: 2031-10-01 | C113: -181286.2329 | D113: 583.3333333 | E113: 377.6796518 | F113: 205.6536815 | G113: -181080.5792 | H113: 0
B114: 2031-11-01 | C114: -181080.5792 | D114: 583.3333333 | E114: 377.2512067 | F114: 206.0821267 | G114: -180874.4971 | H114: 0
B115: 2031-12-01 | C115: -180874.4971 | D115: 583.3333333 | E115: 376.8218689 | F115: 206.5114644 | G115: -180667.9856 | H115: 0
B116: 2032-01-01 | C116: -180667.9856 | D116: 583.3333333 | E116: 376.3916367 | F116: 206.9416967 | G116: -180461.0439 | H116: 0
B117: 2032-02-01 | C117: -180461.0439 | D117: 583.3333333 | E117: 375.9605081 | F117: 207.3728252 | G117: -180253.6711 | H117: 0
B118: 2032-03-01 | C118: -180253.6711 | D118: 583.3333333 | E118: 375.5284814 | F118: 207.8048519 | G118: -180045.8662 | H118: 0
B119: 2032-04-01 | C119: -180045.8662 | D119: 583.3333333 | E119: 375.0955546 | F119: 208.2377787 | G119: -179837.6285 | H119: 0
B120: 2032-05-01 | C120: -179837.6285 | D120: 583.3333333 | E120: 374.6617259 | F120: 208.6716074 | G120: -179628.9568 | H120: 0
B121: 2032-06-01 | C121: -179628.9568 | D121: 583.3333333 | E121: 374.2269934 | F121: 209.1063399 | G121: -179419.8505 | H121: 0
B122: 2032-07-01 | C122: -179419.8505 | D122: 583.3333333 | E122: 373.7913552 | F122: 209.5419781 | G122: -179210.3085 | H122: 0
B123: 2032-08-01 | C123: -179210.3085 | D123: 583.3333333 | E123: 373.3548094 | F123: 209.9785239 | G123: -179000.33 | H123: 0
B124: 2032-09-01 | C124: -179000.33 | D124: 583.3333333 | E124: 372.9173542 | F124: 210.4159792 | G124: -178789.914 | H124: 0
B125: 2032-10-01 | C125: -178789.914 | D125: 583.3333333 | E125: 372.4789875 | F125: 210.8543458 | G125: -178579.0597 | H125: 0
B126: 2032-11-01 | C126: -178579.0597 | D126: 583.3333333 | E126: 372.0397077 | F126: 211.2936257 | G126: -178367.7661 | H126: 0
B127: 2032-12-01 | C127: -178367.7661 | D127: 583.3333333 | E127: 371.5995126 | F127: 211.7338207 | G127: -178156.0322 | H127: 0
B128: 2033-01-01 | C128: -178156.0322 | D128: 583.3333333 | E128: 371.1584005 | F128: 212.1749329 | G128: -177943.8573 | H128: 0
B129: 2033-02-01 | C129: -177943.8573 | D129: 583.3333333 | E129: 370.7163694 | F129: 212.616964 | G129: -177731.2403 | H129: 0
B130: 2033-03-01 | C130: -177731.2403 | D130: 583.3333333 | E130: 370.2734174 | F130: 213.059916 | G130: -177518.1804 | H130: 0
B131: 2033-04-01 | C131: -177518.1804 | D131: 583.3333333 | E131: 369.8295425 | F131: 213.5037908 | G131: -177304.6766 | H131: 1 | I131: 48670 | J131: 177304.6766
B132: 2033-05-01 | H132: 2
B133: 2033-06-01 | H133: 3
B134: 2033-07-01 | H134: 4
B135: 2033-08-01 | H135: 5
B136: 2033-09-01 | H136: 6
B137: 2033-10-01 | H137: 7
B138: 2033-11-01 | H138: 8
B139: 2033-12-01 | H139: 9
B140: 2034-01-01 | H140: =IF(B140=DATE(YEAR($B$11),MONTH($B$11)+$D$5,DAY($B$11)),1,IF(B140>DATE(YEAR($B$11),MONTH($B$11)+$D$5,DAY($B$11)),H139+1,0)) -> 10 | I140: =IF(H140=1,B140,"") ->  | J140: =IF(H140=1,G140*-1,"") -> 
B141: =EDATE(B140,1) -> 2034-02-01 | C141: =IF(H140>0,"",G140) ->  | D141: =IF(H140>0,"",$D$4*($D$6+$D$7)/12) ->  | E141: =IF(H140>0,"",G140*$D$6/12*-1) ->  | F141: =IF(H140>0,"",D141-E141) ->  | G141: =IF(H140>0,"",C141+F141) ->  | H141: 11
B142: 2034-03-01 | H142: 12
B143: 2034-04-01 | H143: 13
B144: 2034-05-01 | H144: 14
B145: 2034-06-01 | H145: 15
B146: 2034-07-01 | H146: 16
B147: 2034-08-01 | H147: 17
B148: 2034-09-01 | H148: 18
B149: 2034-10-01 | H149: 19
B150: 2034-11-01 | H150: 20
B151: 2034-12-01 | H151: 21
B152: 2035-01-01 | H152: 22
B153: 2035-02-01 | H153: 23
B154: 2035-03-01 | H154: 24
B155: 2035-04-01 | H155: 25
B156: 2035-05-01 | H156: 26
B157: 2035-06-01 | H157: 27
B158: 2035-07-01 | H158: 28
B159: 2035-08-01 | H159: 29
B160: 2035-09-01 | H160: 30
B161: 2035-10-01 | H161: 31
B162: 2035-11-01 | H162: 32
B163: 2035-12-01 | H163: 33
B164: 2036-01-01 | H164: 34
B165: 2036-02-01 | H165: 35
B166: 2036-03-01 | H166: 36
B167: 2036-04-01 | H167: 37
B168: 2036-05-01 | H168: 38
B169: 2036-06-01 | H169: 39
B170: 2036-07-01 | H170: 40
B171: 2036-08-01 | H171: 41
B172: 2036-09-01 | H172: 42
B173: 2036-10-01 | H173: 43
B174: 2036-11-01 | H174: 44
B175: 2036-12-01 | H175: 45
B176: 2037-01-01 | H176: 46
B177: 2037-02-01 | H177: 47
B178: 2037-03-01 | H178: 48
B179: 2037-04-01 | H179: 49
B180: 2037-05-01 | H180: 50
B181: 2037-06-01 | H181: 51
B182: 2037-07-01 | H182: 52
B183: 2037-08-01 | H183: 53
B184: 2037-09-01 | H184: 54
B185: 2037-10-01 | H185: 55
B186: 2037-11-01 | H186: 56
B187: 2037-12-01 | H187: 57
B188: 2038-01-01 | H188: 58
B189: 2038-02-01 | H189: 59
B190: 2038-03-01 | H190: 60
B191: 2038-04-01 | H191: 61
B192: 2038-05-01 | H192: 62
B193: 2038-06-01 | H193: 63
B194: 2038-07-01 | H194: 64
B195: 2038-08-01 | H195: 65
B196: 2038-09-01 | H196: 66
B197: 2038-10-01 | H197: 67
B198: 2038-11-01 | H198: 68
B199: 2038-12-01 | H199: 69

Sheet BauSPARvertrag (hidden)
A1: Zuteilung am | B1: =VLOOKUP(5,K19:M206,3,FALSE) -> 2033-04-01 | D1: Bauspartarif | F1: =Vergleich!D12 -> Premium 2,25% / 2,00%
D2: Bausparsumme | F2: 103800
D3: Bausparsumme min. | F3: =IF(F1="Spezial",250000,10000) -> 10000
A4: GH-Zinsen | B4: =SUM(D19:D206)-SUM(P19:P206)+(SUM(P19:P206)/30) -> 23.18333333 | D4: Abschlussgebühr | F4: 0.01
A5: Gebühren | B5: =(B18*-1)+SUM(J19:J206) -> 1660.8 | D5: Variantenpreis | F5: 0.006
A6: GH Zuteilung | B6: =VLOOKUP(5,K19:O206,4,FALSE) -> 47946.10333 | D6: Kontoführungsgebühr | F6: 0
A7: Darl. Zuteilung | B7: =VLOOKUP(5,K19:O206,5,FALSE) -> 55853.89667 | D7: Verzinsung Guthaben | F7: 0.0001
D8: monatliche Sparrate | F8: =Vergleich!D9-(Vergleich!D8*Vergleich!D11/12)-(Vergleich!D8*Vergleich!J18/12) -> 416.6666667
D9: Tilgungsbeitrag | F9: 420
D10: Tilgungsbeitrag min. | F10: =IF($F$1="Komfort 0,45%",0.01,IF($F$1="Komfort 1,95%",0.0035,IF($F$1="Premium 1,50% / 1,25%",0.004,IF($F$1="Premium 2,25% / 2,00%",0.004,IF($F$1="Spezial",0.0045,""))))) -> 0.004
D11: Tilgungsbeitrag max. | F11: =IF($F$1="Komfort 0,45%",0.01,IF($F$1="Komfort 1,95%",0.0035,IF($F$1="Premium 1,50% / 1,25%",0.008,IF($F$1="Premium 2,25% / 2,00%",0.008,IF($F$1="Spezial",0.008,""))))) -> 0.008
D12: Zinsfaktor | F12: =IF(F1="Komfort 0,45%",0.7,IF(F1="Komfort 1,95%",0.275,IF(F1="Premium 1,50% / 1,25%",0.503,IF(F1="Premium 2,25% / 2,00%",0.286,0.5)))) -> 0.286
D13: Mindestguthaben | F13: =IF(OR(F1="Komfort 0,45%",F1="Komfort 1,95%",F1="Premium 1,50% / 1,25%",F1="Spezial"),0.4,IF(F1="Premium 2,25% / 2,00%",0.3,"")) -> 0.3
A17: Start | B17: G | C17: G = 0 | D17: Zinsen | E17: Zinsen p.a. | F17: SHS | G17: D | H17: D für BZ | I17: BZ | J17: Kontoführung | K17: Zut.voraus. | L17: Zut.voraus. | M17: Zuteilung | N17: GH Zuteilung | O17: Darl. Zuteilung | P17: Zins Zut.monat
A18: =DATE(YEAR(TODAY()),MONTH(TODAY())+1,1) -> 2023-04-01 | B18: =(F2*F4+F2*F5)*-1-J18 -> -1660.8 | J18: =IF(OR(MONTH(A18)=1,MONTH(A18)=2,MONTH(A18)=3,MONTH(A18)=4,MONTH(A18)=5,MONTH(A18)=6),F6,IF(OR(MONTH(A18)=7,MONTH(A18)=8,MONTH(A18)=9,MONTH(A18)=10),F6/3*2,0)) -> 0
A19: =EDATE(A18,1) -> 2023-05-01 | B19: =IF(K18>4,"",IF(AND(K18=4,MONTH(A19)=1),B18+E19-J19,IF(AND(K18=4,MONTH(A19)>1),B18+E19,IF(AND(K18<4,MONTH(A19)=12),$F$8+B18+E19,IF(AND(K18<4,MONTH(A19)=1),$F$8+B18-J19,$F$8+B18))))) -> -1244.133333 | C19: =IF(B19=0,0.0001,B19) -> -1244.133333 | D19: =IF(K18>4,"",IF((B18+$F$8-J19)<0,0,IF(MONTH(A19)=1,ROUND(($F$8+B18-J19)*$F$7*30/360,2),ROUND(($F$8+B18)*$F$7*30/360,2)))) -> 0 | E19: =IF(K18>4,"",IF(MONTH(A19)=1,D19,D19+E18)) -> 0 | F19: =IF(K18>4,"",IF(B19<0,0,F18+B19)) -> 0 | G19: =IF(K18>4,"",IF(B19<0,$F$2,$F$2-B19)) -> 103800 | H19: =IF(K18>4,"",IF(G19>$F$2*0.5,G19,$F$2*0.5)) -> 103800 | I19: =IF(K18>4,"",IF(OR($F$1="Komfort 0,45%",$F$1="Komfort 1,95%",$F$1="Spezial"),ROUND((200*$F$9*1)/((H19/750)+($F$12*H19*H19)/(F19+3*C19)),0),ROUND((200*$F$9*(1-64*(($F$9-0.004*$F$2)/$F$2)*(C19/$F$2-$F$13)))/((H19/750)+($F$12*H19*H19)/(F19+3*C19)),0))) -> 0 | J19: =IF(K18>4,"",IF(MONTH(A19)=1,$F$6,0)) -> 0 | K19: =IF(AND(OR(I19=200,I19>200),OR(B19>$F$2*$F$13,B19=$F$2*$F$13)),K18+1,0) -> 0 | L19: =IF(K19=1,A19,"") ->  | M19: =IF(K19=5,A19,"") ->  | N19: =IF(K19=5,B19,"") ->  | O19: =IF(K19=5,G19,"") ->  | P19: =IF(K19=5,D19,0) -> 0
A20: =EDATE(A19,1) -> 2023-06-01 | B20: -827.4666667 | C20: =IF(B20=0,0.0001,B20) -> -827.4666667 | D20: 0 | E20: 0 | F20: =IF(K19>4,"",IF(B20<0,0,F19+B20)) -> 0 | G20: =IF(K19>4,"",IF(B20<0,$F$2,$F$2-B20)) -> 103800 | H20: =IF(K19>4,"",IF(G20>$F$2*0.5,G20,$F$2*0.5)) -> 103800 | I20: 0 | J20: 0 | K20: 0 | N20: =IF(K20=5,B20,"") ->  | O20: =IF(K20=5,G20,"") ->  | P20: =IF(K20=5,D20,0) -> 0
A21: 2023-07-01 | B21: -410.8 | C21: -410.8 | D21: 0 | E21: 0 | F21: 0 | G21: 103800 | H21: 103800 | I21: 0 | J21: 0 | K21: 0 | P21: 0
A22: 2023-08-01 | B22: 5.866666667 | C22: 5.866666667 | D22: 0 | E22: 0 | F22: 5.866666667 | G22: 103794.1333 | H22: 103794.1333 | I22: 0 | J22: 0 | K22: 0 | P22: 0
A23: 2023-09-01 | B23: 422.5333333 | C23: 422.5333333 | D23: 0 | E23: 0 | F23: 428.4 | G23: 103377.4667 | H23: 103377.4667 | I23: 0 | J23: 0 | K23: 0 | P23: 0
A24: 2023-10-01 | B24: 839.2 | C24: 839.2 | D24: 0.01 | E24: 0.01 | F24: 1267.6 | G24: 102960.8 | H24: 102960.8 | I24: 0 | J24: 0 | K24: 0 | P24: 0
A25: 2023-11-01 | B25: 1255.866667 | C25: 1255.866667 | D25: 0.01 | E25: 0.02 | F25: 2523.466667 | G25: 102544.1333 | H25: 102544.1333 | I25: 0 | J25: 0 | K25: 0 | P25: 0
A26: 2023-12-01 | B26: 1672.563333 | C26: 1672.563333 | D26: 0.01 | E26: 0.03 | F26: 4196.03 | G26: 102127.4367 | H26: 102127.4367 | I26: 0 | J26: 0 | K26: 0 | P26: 0
A27: 2024-01-01 | B27: 2089.23 | C27: 2089.23 | D27: 0.02 | E27: 0.02 | F27: 6285.26 | G27: 101710.77 | H27: 101710.77 | I27: 0 | J27: 0 | K27: 0 | P27: 0
A28: 2024-02-01 | B28: 2505.896667 | C28: 2505.896667 | D28: 0.02 | E28: 0.04 | F28: 8791.156667 | G28: 101294.1033 | H28: 101294.1033 | I28: 0 | J28: 0 | K28: 0 | P28: 0
A29: 2024-03-01 | B29: 2922.563333 | C29: 2922.563333 | D29: 0.02 | E29: 0.06 | F29: 11713.72 | G29: 100877.4367 | H29: 100877.4367 | I29: 1 | J29: 0 | K29: 0 | P29: 0
A30: 2024-04-01 | B30: 3339.23 | C30: 3339.23 | D30: 0.03 | E30: 0.09 | F30: 15052.95 | G30: 100460.77 | H30: 100460.77 | I30: 1 | J30: 0 | K30: 0 | P30: 0
A31: 2024-05-01 | B31: 3755.896667 | C31: 3755.896667 | D31: 0.03 | E31: 0.12 | F31: 18808.84667 | G31: 100044.1033 | H31: 100044.1033 | I31: 1 | J31: 0 | K31: 0 | P31: 0
A32: 2024-06-01 | B32: 4172.563333 | C32: 4172.563333 | D32: 0.03 | E32: 0.15 | F32: 22981.41 | G32: 99627.43667 | H32: 99627.43667 | I32: 1 | J32: 0 | K32: 0 | P32: 0
A33: 2024-07-01 | B33: 4589.23 | C33: 4589.23 | D33: 0.04 | E33: 0.19 | F33: 27570.64 | G33: 99210.77 | H33: 99210.77 | I33: 1 | J33: 0 | K33: 0 | P33: 0
A34: 2024-08-01 | B34: 5005.896667 | C34: 5005.896667 | D34: 0.04 | E34: 0.23 | F34: 32576.53667 | G34: 98794.10333 | H34: 98794.10333 | I34: 1 | J34: 0 | K34: 0 | P34: 0
A35: 2024-09-01 | B35: 5422.563333 | C35: 5422.563333 | D35: 0.05 | E35: 0.28 | F35: 37999.1 | G35: 98377.43667 | H35: 98377.43667 | I35: 2 | J35: 0 | K35: 0 | P35: 0
A36: 2024-10-01 | B36: 5839.23 | C36: 5839.23 | D36: 0.05 | E36: 0.33 | F36: 43838.33 | G36: 97960.77 | H36: 97960.77 | I36: 2 | J36: 0 | K36: 0 | P36: 0
A37: 2024-11-01 | B37: 6255.896667 | C37: 6255.896667 | D37: 0.05 | E37: 0.38 | F37: 50094.22667 | G37: 97544.10333 | H37: 97544.10333 | I37: 2 | J37: 0 | K37: 0 | P37: 0
A38: 2024-12-01 | B38: 6673.003333 | C38: 6673.003333 | D38: 0.06 | E38: 0.44 | F38: 56767.23 | G38: 97126.99667 | H38: 97126.99667 | I38: 2 | J38: 0 | K38: 0 | P38: 0
A39: 2025-01-01 | B39: 7089.67 | C39: 7089.67 | D39: 0.06 | E39: 0.06 | F39: 63856.9 | G39: 96710.33 | H39: 96710.33 | I39: 3 | J39: 0 | K39: 0 | P39: 0
A40: 2025-02-01 | B40: 7506.336667 | C40: 7506.336667 | D40: 0.06 | E40: 0.12 | F40: 71363.23667 | G40: 96293.66333 | H40: 96293.66333 | I40: 3 | J40: 0 | K40: 0 | P40: 0
A41: 2025-03-01 | B41: 7923.003333 | C41: 7923.003333 | D41: 0.07 | E41: 0.19 | F41: 79286.24 | G41: 95876.99667 | H41: 95876.99667 | I41: 3 | J41: 0 | K41: 0 | P41: 0
A42: 2025-04-01 | B42: 8339.67 | C42: 8339.67 | D42: 0.07 | E42: 0.26 | F42: 87625.91 | G42: 95460.33 | H42: 95460.33 | I42: 4 | J42: 0 | K42: 0 | P42: 0
A43: 2025-05-01 | B43: 8756.336667 | C43: 8756.336667 | D43: 0.07 | E43: 0.33 | F43: 96382.24667 | G43: 95043.66333 | H43: 95043.66333 | I43: 4 | J43: 0 | K43: 0 | P43: 0
A44: 2025-06-01 | B44: 9173.003333 | C44: 9173.003333 | D44: 0.08 | E44: 0.41 | F44: 105555.25 | G44: 94626.99667 | H44: 94626.99667 | I44: 4 | J44: 0 | K44: 0 | P44: 0
A45: 2025-07-01 | B45: 9589.67 | C45: 9589.67 | D45: 0.08 | E45: 0.49 | F45: 115144.92 | G45: 94210.33 | H45: 94210.33 | I45: 5 | J45: 0 | K45: 0 | P45: 0
A46: 2025-08-01 | B46: 10006.33667 | C46: 10006.33667 | D46: 0.08 | E46: 0.57 | F46: 125151.2567 | G46: 93793.66333 | H46: 93793.66333 | I46: 5 | J46: 0 | K46: 0 | P46: 0
A47: 2025-09-01 | B47: 10423.00333 | C47: 10423.00333 | D47: 0.09 | E47: 0.66 | F47: 135574.26 | G47: 93376.99667 | H47: 93376.99667 | I47: 6 | J47: 0 | K47: 0 | P47: 0
A48: 2025-10-01 | B48: 10839.67 | C48: 10839.67 | D48: 0.09 | E48: 0.75 | F48: 146413.93 | G48: 92960.33 | H48: 92960.33 | I48: 6 | J48: 0 | K48: 0 | P48: 0
A49: 2025-11-01 | B49: 11256.33667 | C49: 11256.33667 | D49: 0.09 | E49: 0.84 | F49: 157670.2667 | G49: 92543.66333 | H49: 92543.66333 | I49: 7 | J49: 0 | K49: 0 | P49: 0
A50: 2025-12-01 | B50: 11673.94333 | C50: 11673.94333 | D50: 0.1 | E50: 0.94 | F50: 169344.21 | G50: 92126.05667 | H50: 92126.05667 | I50: 7 | J50: 0 | K50: 0 | P50: 0
A51: 2026-01-01 | B51: 12090.61 | C51: 12090.61 | D51: 0.1 | E51: 0.1 | F51: 181434.82 | G51: 91709.39 | H51: 91709.39 | I51: =IF(K50>4,"",IF(OR($F$1="Komfort 0,45%",$F$1="Komfort 1,95%",$F$1="Spezial"),ROUND((200*$F$9*1)/((H51/750)+($F$12*H51*H51)/(F51+3*C51)),0),ROUND((200*$F$9*(1-64*(($F$9-0.004*$F$2)/$F$2)*(C51/$F$2-$F$13)))/((H51/750)+($F$12*H51*H51)/(F51+3*C51)),0))) -> 8 | J51: 0 | K51: =IF(AND(OR(I51=200,I51>200),OR(B51>$F$2*$F$13,B51=$F$2*$F$13)),K50+1,0) -> 0 | P51: 0
A52: 2026-02-01 | B52: 12507.27667 | C52: 12507.27667 | D52: 0.1 | E52: 0.2 | F52: 193942.0967 | G52: 91292.72333 | H52: 91292.72333 | I52: 8 | J52: 0 | K52: 0 | P52: 0
A53: 2026-03-01 | B53: 12923.94333 | C53: 12923.94333 | D53: 0.11 | E53: 0.31 | F53: 206866.04 | G53: 90876.05667 | H53: 90876.05667 | I53: 9 | J53: 0 | K53: 0 | P53: 0
A54: 2026-04-01 | B54: 13340.61 | C54: 13340.61 | D54: 0.11 | E54: 0.42 | F54: 220206.65 | G54: 90459.39 | H54: 90459.39 | I54: 9 | J54: 0 | K54: 0 | P54: 0
A55: 2026-05-01 | B55: 13757.27667 | C55: 13757.27667 | D55: 0.11 | E55: 0.53 | F55: 233963.9267 | G55: 90042.72333 | H55: 90042.72333 | I55: 10 | J55: 0 | K55: 0 | P55: 0
A56: 2026-06-01 | B56: 14173.94333 | C56: 14173.94333 | D56: 0.12 | E56: 0.65 | F56: 248137.87 | G56: 89626.05667 | H56: 89626.05667 | I56: 10 | J56: 0 | K56: 0 | P56: 0
A57: 2026-07-01 | B57: 14590.61 | C57: 14590.61 | D57: 0.12 | E57: 0.77 | F57: 262728.48 | G57: 89209.39 | H57: 89209.39 | I57: 11 | J57: 0 | K57: 0 | P57: 0
A58: 2026-08-01 | B58: 15007.27667 | C58: 15007.27667 | D58: 0.13 | E58: 0.9 | F58: 277735.7567 | G58: 88792.72333 | H58: 88792.72333 | I58: 12 | J58: 0 | K58: 0 | P58: 0
A59: 2026-09-01 | B59: 15423.94333 | C59: 15423.94333 | D59: 0.13 | E59: 1.03 | F59: 293159.7 | G59: 88376.05667 | H59: 88376.05667 | I59: 13 | J59: 0 | K59: 0 | P59: 0
A60: 2026-10-01 | B60: 15840.61 | C60: 15840.61 | D60: 0.13 | E60: 1.16 | F60: 309000.31 | G60: 87959.39 | H60: 87959.39 | I60: 13 | J60: 0 | K60: 0 | P60: 0
A61: 2026-11-01 | B61: 16257.27667 | C61: 16257.27667 | D61: 0.14 | E61: 1.3 | F61: 325257.5867 | G61: 87542.72333 | H61: 87542.72333 | I61: 14 | J61: 0 | K61: 0 | P61: 0
A62: 2026-12-01 | B62: 16675.38333 | C62: 16675.38333 | D62: 0.14 | E62: 1.44 | F62: 341932.97 | G62: 87124.61667 | H62: 87124.61667 | I62: 15 | J62: 0 | K62: 0 | P62: 0
A63: 2027-01-01 | B63: 17092.05 | C63: 17092.05 | D63: 0.14 | E63: 0.14 | F63: 359025.02 | G63: 86707.95 | H63: 86707.95 | I63: 16 | J63: 0 | K63: 0 | P63: 0
A64: 2027-02-01 | B64: 17508.71667 | C64: 17508.71667 | D64: 0.15 | E64: 0.29 | F64: 376533.7367 | G64: 86291.28333 | H64: 86291.28333 | I64: 17 | J64: 0 | K64: 0 | P64: 0
A65: 2027-03-01 | B65: 17925.38333 | C65: 17925.38333 | D65: 0.15 | E65: 0.44 | F65: 394459.12 | G65: 85874.61667 | H65: 85874.61667 | I65: 17 | J65: 0 | K65: 0 | P65: 0
A66: 2027-04-01 | B66: 18342.05 | C66: 18342.05 | D66: 0.15 | E66: 0.59 | F66: 412801.17 | G66: 85457.95 | H66: 85457.95 | I66: 18 | J66: 0 | K66: 0 | P66: 0
A67: 2027-05-01 | B67: 18758.71667 | C67: 18758.71667 | D67: 0.16 | E67: 0.75 | F67: 431559.8867 | G67: 85041.28333 | H67: 85041.28333 | I67: 19 | J67: 0 | K67: 0 | P67: 0
A68: 2027-06-01 | B68: 19175.38333 | C68: 19175.38333 | D68: 0.16 | E68: 0.91 | F68: 450735.27 | G68: 84624.61667 | H68: 84624.61667 | I68: 20 | J68: 0 | K68: 0 | P68: 0
A69: 2027-07-01 | B69: 19592.05 | C69: 19592.05 | D69: 0.16 | E69: 1.07 | F69: 470327.32 | G69: 84207.95 | H69: 84207.95 | I69: 21 | J69: 0 | K69: 0 | P69: 0
A70: 2027-08-01 | B70: 20008.71667 | C70: 20008.71667 | D70: 0.17 | E70: 1.24 | F70: 490336.0367 | G70: 83791.28333 | H70: 83791.28333 | I70: 22 | J70: 0 | K70: 0 | P70: 0
A71: 2027-09-01 | B71: 20425.38333 | C71: 20425.38333 | D71: 0.17 | E71: 1.41 | F71: 510761.42 | G71: 83374.61667 | H71: 83374.61667 | I71: 23 | J71: 0 | K71: 0 | P71: 0
A72: 2027-10-01 | B72: 20842.05 | C72: 20842.05 | D72: 0.17 | E72: 1.58 | F72: 531603.47 | G72: 82957.95 | H72: 82957.95 | I72: 25 | J72: 0 | K72: 0 | P72: 0
A73: 2027-11-01 | B73: 21258.71667 | C73: 21258.71667 | D73: 0.18 | E73: 1.76 | F73: 552862.1867 | G73: 82541.28333 | H73: 82541.28333 | I73: 26 | J73: 0 | K73: 0 | P73: 0
A74: 2027-12-01 | B74: 21677.32333 | C74: 21677.32333 | D74: 0.18 | E74: 1.94 | F74: 574539.51 | G74: 82122.67667 | H74: 82122.67667 | I74: 27 | J74: 0 | K74: 0 | P74: 0
A75: 2028-01-01 | B75: 22093.99 | C75: 22093.99 | D75: 0.18 | E75: 0.18 | F75: 596633.5 | G75: 81706.01 | H75: 81706.01 | I75: 28 | J75: 0 | K75: 0 | P75: 0
A76: 2028-02-01 | B76: 22510.65667 | C76: 22510.65667 | D76: 0.19 | E76: 0.37 | F76: 619144.1567 | G76: 81289.34333 | H76: 81289.34333 | I76: 29 | J76: 0 | K76: 0 | P76: 0
A77: 2028-03-01 | B77: 22927.32333 | C77: 22927.32333 | D77: 0.19 | E77: 0.56 | F77: 642071.48 | G77: 80872.67667 | H77: 80872.67667 | I77: 31 | J77: 0 | K77: 0 | P77: 0
A78: 2028-04-01 | B78: 23343.99 | C78: 23343.99 | D78: 0.19 | E78: 0.75 | F78: 665415.47 | G78: 80456.01 | H78: 80456.01 | I78: 32 | J78: 0 | K78: 0 | P78: 0
A79: 2028-05-01 | B79: 23760.65667 | C79: 23760.65667 | D79: 0.2 | E79: 0.95 | F79: 689176.1267 | G79: 80039.34333 | H79: 80039.34333 | I79: 33 | J79: 0 | K79: 0 | P79: 0
A80: 2028-06-01 | B80: 24177.32333 | C80: 24177.32333 | D80: 0.2 | E80: 1.15 | F80: 713353.45 | G80: 79622.67667 | H80: 79622.67667 | I80: 35 | J80: 0 | K80: 0 | P80: 0
A81: 2028-07-01 | B81: 24593.99 | C81: 24593.99 | D81: 0.2 | E81: 1.35 | F81: 737947.44 | G81: 79206.01 | H81: 79206.01 | I81: 36 | J81: 0 | K81: 0 | P81: 0
A82: 2028-08-01 | B82: 25010.65667 | C82: 25010.65667 | D82: 0.21 | E82: 1.56 | F82: 762958.0967 | G82: 78789.34333 | H82: 78789.34333 | I82: 38 | J82: 0 | K82: 0 | P82: 0
A83: 2028-09-01 | B83: =IF(K82>4,"",IF(AND(K82=4,MONTH(A83)=1),B82+E83-J83,IF(AND(K82=4,MONTH(A83)>1),B82+E83,IF(AND(K82<4,MONTH(A83)=12),$F$8+B82+E83,IF(AND(K82<4,MONTH(A83)=1),$F$8+B82-J83,$F$8+B82))))) -> 25427.32333 | C83: 25427.32333 | D83: =IF(K82>4,"",IF((B82+$F$8-J83)<0,0,IF(MONTH(A83)=1,ROUND(($F$8+B82-J83)*$F$7*30/360,2),ROUND(($F$8+B82)*$F$7*30/360,2)))) -> 0.21 | E83: =IF(K82>4,"",IF(MONTH(A83)=1,D83,D83+E82)) -> 1.77 | F83: 788385.42 | G83: 78372.67667 | H83: 78372.67667 | I83: =IF(K82>4,"",IF(OR($F$1="Komfort 0,45%",$F$1="Komfort 1,95%",$F$1="Spezial"),ROUND((200*$F$9*1)/((H83/750)+($F$12*H83*H83)/(F83+3*C83)),0),ROUND((200*$F$9*(1-64*(($F$9-0.004*$F$2)/$F$2)*(C83/$F$2-$F$13)))/((H83/750)+($F$12*H83*H83)/(F83+3*C83)),0))) -> 39 | J83: =IF(K82>4,"",IF(MONTH(A83)=1,$F$6,0)) -> 0 | K83: =IF(AND(OR(I83=200,I83>200),OR(B83>$F$2*$F$13,B83=$F$2*$F$13)),K82+1,0) -> 0 | L83: =IF(K83=1,A83,"") ->  | M83: =IF(K83=5,A83,"") ->  | P83: 0
A84: =EDATE(A83,1) -> 2028-10-01 | B84: 25843.99 | C84: =IF(B84=0,0.0001,B84) -> 25843.99 | D84: 0.22 | E84: 1.99 | F84: =IF(K83>4,"",IF(B84<0,0,F83+B84)) -> 814229.41 | G84: =IF(K83>4,"",IF(B84<0,$F$2,$F$2-B84)) -> 77956.01 | H84: =IF(K83>4,"",IF(G84>$F$2*0.5,G84,$F$2*0.5)) -> 77956.01 | I84: 41 | J84: 0 | K84: 0 | N84: =IF(K84=5,B84,"") ->  | O84: =IF(K84=5,G84,"") ->  | P84: =IF(K84=5,D84,0) -> 0
A85: 2028-11-01 | B85: 26260.65667 | C85: 26260.65667 | D85: 0.22 | E85: 2.21 | F85: 840490.0667 | G85: 77539.34333 | H85: 77539.34333 | I85: 43 | J85: 0 | K85: 0 | P85: 0
A86: 2028-12-01 | B86: 26679.75333 | C86: 26679.75333 | D86: 0.22 | E86: 2.43 | F86: 867169.82 | G86: 77120.24667 | H86: 77120.24667 | I86: 44 | J86: 0 | K86: 0 | P86: 0
A87: 2029-01-01 | B87: 27096.42 | C87: 27096.42 | D87: 0.23 | E87: 0.23 | F87: 894266.24 | G87: 76703.58 | H87: 76703.58 | I87: 46 | J87: 0 | K87: 0 | P87: 0
A88: 2029-02-01 | B88: 27513.08667 | C88: 27513.08667 | D88: 0.23 | E88: 0.46 | F88: 921779.3267 | G88: 76286.91333 | H88: 76286.91333 | I88: 48 | J88: 0 | K88: 0 | P88: 0
A89: 2029-03-01 | B89: 27929.75333 | C89: 27929.75333 | D89: 0.23 | E89: 0.69 | F89: 949709.08 | G89: 75870.24667 | H89: 75870.24667 | I89: 50 | J89: 0 | K89: 0 | P89: 0
A90: 2029-04-01 | B90: 28346.42 | C90: 28346.42 | D90: 0.24 | E90: 0.93 | F90: 978055.5 | G90: 75453.58 | H90: 75453.58 | I90: 51 | J90: 0 | K90: 0 | P90: 0
A91: 2029-05-01 | B91: 28763.08667 | C91: 28763.08667 | D91: 0.24 | E91: 1.17 | F91: 1006818.587 | G91: 75036.91333 | H91: 75036.91333 | I91: 53 | J91: 0 | K91: 0 | P91: 0
A92: 2029-06-01 | B92: 29179.75333 | C92: 29179.75333 | D92: 0.24 | E92: 1.41 | F92: 1035998.34 | G92: 74620.24667 | H92: 74620.24667 | I92: 55 | J92: 0 | K92: 0 | P92: 0
A93: 2029-07-01 | B93: 29596.42 | C93: 29596.42 | D93: 0.25 | E93: 1.66 | F93: 1065594.76 | G93: 74203.58 | H93: 74203.58 | I93: 57 | J93: 0 | K93: 0 | P93: 0
A94: 2029-08-01 | B94: 30013.08667 | C94: 30013.08667 | D94: 0.25 | E94: 1.91 | F94: 1095607.847 | G94: 73786.91333 | H94: 73786.91333 | I94: 60 | J94: 0 | K94: 0 | P94: 0
A95: 2029-09-01 | B95: 30429.75333 | C95: 30429.75333 | D95: 0.25 | E95: 2.16 | F95: 1126037.6 | G95: 73370.24667 | H95: 73370.24667 | I95: 62 | J95: 0 | K95: 0 | P95: 0
A96: 2029-10-01 | B96: 30846.42 | C96: 30846.42 | D96: 0.26 | E96: 2.42 | F96: 1156884.02 | G96: 72953.58 | H96: 72953.58 | I96: 64 | J96: 0 | K96: 0 | P96: 0
A97: 2029-11-01 | B97: 31263.08667 | C97: 31263.08667 | D97: 0.26 | E97: 2.68 | F97: 1188147.107 | G97: 72536.91333 | H97: 72536.91333 | I97: 66 | J97: 0 | K97: 0 | P97: 0
A98: 2029-12-01 | B98: 31682.69333 | C98: 31682.69333 | D98: 0.26 | E98: 2.94 | F98: 1219829.8 | G98: 72117.30667 | H98: 72117.30667 | I98: 68 | J98: 0 | K98: 0 | P98: 0
A99: 2030-01-01 | B99: 32099.36 | C99: 32099.36 | D99: 0.27 | E99: 0.27 | F99: 1251929.16 | G99: 71700.64 | H99: 71700.64 | I99: 71 | J99: 0 | K99: 0 | P99: 0
A100: 2030-02-01 | B100: 32516.02667 | C100: 32516.02667 | D100: 0.27 | E100: 0.54 | F100: 1284445.187 | G100: 71283.97333 | H100: 71283.97333 | I100: 73 | J100: 0 | K100: 0 | P100: 0
A101: 2030-03-01 | B101: 32932.69333 | C101: 32932.69333 | D101: 0.27 | E101: 0.81 | F101: 1317377.88 | G101: 70867.30667 | H101: 70867.30667 | I101: 76 | J101: 0 | K101: 0 | P101: 0
A102: 2030-04-01 | B102: 33349.36 | C102: 33349.36 | D102: 0.28 | E102: 1.09 | F102: 1350727.24 | G102: 70450.64 | H102: 70450.64 | I102: 78 | J102: 0 | K102: 0 | P102: 0
A103: 2030-05-01 | B103: 33766.02667 | C103: 33766.02667 | D103: 0.28 | E103: 1.37 | F103: 1384493.267 | G103: 70033.97333 | H103: 70033.97333 | I103: 81 | J103: 0 | K103: 0 | P103: 0
A104: 2030-06-01 | B104: 34182.69333 | C104: 34182.69333 | D104: 0.28 | E104: 1.65 | F104: 1418675.96 | G104: 69617.30667 | H104: 69617.30667 | I104: 84 | J104: 0 | K104: 0 | P104: 0
A105: 2030-07-01 | B105: 34599.36 | C105: 34599.36 | D105: 0.29 | E105: 1.94 | F105: 1453275.32 | G105: 69200.64 | H105: 69200.64 | I105: 86 | J105: 0 | K105: 0 | P105: 0
A106: 2030-08-01 | B106: 35016.02667 | C106: 35016.02667 | D106: 0.29 | E106: 2.23 | F106: 1488291.347 | G106: 68783.97333 | H106: 68783.97333 | I106: 89 | J106: 0 | K106: 0 | P106: 0
A107: 2030-09-01 | B107: 35432.69333 | C107: 35432.69333 | D107: 0.3 | E107: 2.53 | F107: 1523724.04 | G107: 68367.30667 | H107: 68367.30667 | I107: 92 | J107: 0 | K107: 0 | P107: 0
A108: 2030-10-01 | B108: 35849.36 | C108: 35849.36 | D108: 0.3 | E108: 2.83 | F108: 1559573.4 | G108: 67950.64 | H108: 67950.64 | I108: 95 | J108: 0 | K108: 0 | P108: 0
A109: 2030-11-01 | B109: 36266.02667 | C109: 36266.02667 | D109: 0.3 | E109: 3.13 | F109: 1595839.427 | G109: 67533.97333 | H109: 67533.97333 | I109: 98 | J109: 0 | K109: 0 | P109: 0
A110: 2030-12-01 | B110: 36686.13333 | C110: 36686.13333 | D110: 0.31 | E110: 3.44 | F110: 1632525.56 | G110: 67113.86667 | H110: 67113.86667 | I110: 101 | J110: 0 | K110: 0 | P110: 0
A111: 2031-01-01 | B111: 37102.8 | C111: 37102.8 | D111: 0.31 | E111: 0.31 | F111: 1669628.36 | G111: 66697.2 | H111: 66697.2 | I111: 105 | J111: 0 | K111: 0 | P111: 0
A112: 2031-02-01 | B112: 37519.46667 | C112: 37519.46667 | D112: 0.31 | E112: 0.62 | F112: 1707147.827 | G112: 66280.53333 | H112: 66280.53333 | I112: 108 | J112: 0 | K112: 0 | P112: 0
A113: 2031-03-01 | B113: 37936.13333 | C113: 37936.13333 | D113: 0.32 | E113: 0.94 | F113: 1745083.96 | G113: 65863.86667 | H113: 65863.86667 | I113: 111 | J113: 0 | K113: 0 | P113: 0
A114: 2031-04-01 | B114: 38352.8 | C114: 38352.8 | D114: 0.32 | E114: 1.26 | F114: 1783436.76 | G114: 65447.2 | H114: 65447.2 | I114: 115 | J114: 0 | K114: 0 | P114: 0
A115: 2031-05-01 | B115: 38769.46667 | C115: 38769.46667 | D115: 0.32 | E115: 1.58 | F115: 1822206.227 | G115: 65030.53333 | H115: 65030.53333 | I115: =IF(K114>4,"",IF(OR($F$1="Komfort 0,45%",$F$1="Komfort 1,95%",$F$1="Spezial"),ROUND((200*$F$9*1)/((H115/750)+($F$12*H115*H115)/(F115+3*C115)),0),ROUND((200*$F$9*(1-64*(($F$9-0.004*$F$2)/$F$2)*(C115/$F$2-$F$13)))/((H115/750)+($F$12*H115*H115)/(F115+3*C115)),0))) -> 118 | J115: 0 | K115: =IF(AND(OR(I115=200,I115>200),OR(B115>$F$2*$F$13,B115=$F$2*$F$13)),K114+1,0) -> 0 | P115: 0
A116: 2031-06-01 | B116: 39186.13333 | C116: 39186.13333 | D116: 0.33 | E116: 1.91 | F116: 1861392.36 | G116: 64613.86667 | H116: 64613.86667 | I116: 122 | J116: 0 | K116: 0 | P116: 0
A117: 2031-07-01 | B117: 39602.8 | C117: 39602.8 | D117: 0.33 | E117: 2.24 | F117: 1900995.16 | G117: 64197.2 | H117: 64197.2 | I117: 126 | J117: 0 | K117: 0 | P117: 0
A118: 2031-08-01 | B118: 40019.46667 | C118: 40019.46667 | D118: 0.33 | E118: 2.57 | F118: 1941014.627 | G118: 63780.53333 | H118: 63780.53333 | I118: 129 | J118: 0 | K118: 0 | P118: 0
A119: 2031-09-01 | B119: 40436.13333 | C119: 40436.13333 | D119: 0.34 | E119: 2.91 | F119: 1981450.76 | G119: 63363.86667 | H119: 63363.86667 | I119: 133 | J119: 0 | K119: 0 | P119: 0
A120: 2031-10-01 | B120: 40852.8 | C120: 40852.8 | D120: 0.34 | E120: 3.25 | F120: 2022303.56 | G120: 62947.2 | H120: 62947.2 | I120: 137 | J120: 0 | K120: 0 | P120: 0
A121: 2031-11-01 | B121: 41269.46667 | C121: 41269.46667 | D121: 0.34 | E121: 3.59 | F121: 2063573.027 | G121: 62530.53333 | H121: 62530.53333 | I121: 141 | J121: 0 | K121: 0 | P121: 0
A122: 2031-12-01 | B122: 41690.07333 | C122: 41690.07333 | D122: 0.35 | E122: 3.94 | F122: 2105263.1 | G122: 62109.92667 | H122: 62109.92667 | I122: 145 | J122: 0 | K122: 0 | P122: 0
A123: 2032-01-01 | B123: 42106.74 | C123: 42106.74 | D123: 0.35 | E123: 0.35 | F123: 2147369.84 | G123: 61693.26 | H123: 61693.26 | I123: 150 | J123: 0 | K123: 0 | P123: 0
A124: 2032-02-01 | B124: 42523.40667 | C124: 42523.40667 | D124: 0.35 | E124: 0.7 | F124: 2189893.247 | G124: 61276.59333 | H124: 61276.59333 | I124: 154 | J124: 0 | K124: 0 | P124: 0
A125: 2032-03-01 | B125: 42940.07333 | C125: 42940.07333 | D125: 0.36 | E125: 1.06 | F125: 2232833.32 | G125: 60859.92667 | H125: 60859.92667 | I125: 159 | J125: 0 | K125: 0 | P125: 0
A126: 2032-04-01 | B126: 43356.74 | C126: 43356.74 | D126: 0.36 | E126: 1.42 | F126: 2276190.06 | G126: 60443.26 | H126: 60443.26 | I126: 163 | J126: 0 | K126: 0 | P126: 0
A127: 2032-05-01 | B127: 43773.40667 | C127: 43773.40667 | D127: 0.36 | E127: 1.78 | F127: 2319963.467 | G127: 60026.59333 | H127: 60026.59333 | I127: 168 | J127: 0 | K127: 0 | P127: 0
A128: 2032-06-01 | B128: 44190.07333 | C128: 44190.07333 | D128: 0.37 | E128: 2.15 | F128: 2364153.54 | G128: 59609.92667 | H128: 59609.92667 | I128: 173 | J128: 0 | K128: 0 | P128: 0
A129: 2032-07-01 | B129: 44606.74 | C129: 44606.74 | D129: 0.37 | E129: 2.52 | F129: 2408760.28 | G129: 59193.26 | H129: 59193.26 | I129: 178 | J129: 0 | K129: 0 | P129: 0
A130: 2032-08-01 | B130: 45023.40667 | C130: 45023.40667 | D130: 0.38 | E130: 2.9 | F130: 2453783.687 | G130: 58776.59333 | H130: 58776.59333 | I130: 183 | J130: 0 | K130: 0 | P130: 0
A131: 2032-09-01 | B131: 45440.07333 | C131: 45440.07333 | D131: 0.38 | E131: 3.28 | F131: 2499223.76 | G131: 58359.92667 | H131: 58359.92667 | I131: 188 | J131: 0 | K131: 0 | P131: 0
A132: 2032-10-01 | B132: 45856.74 | C132: 45856.74 | D132: 0.38 | E132: 3.66 | F132: 2545080.5 | G132: 57943.26 | H132: 57943.26 | I132: 193 | J132: 0 | K132: 0 | P132: 0
A133: 2032-11-01 | B133: 46273.40667 | C133: 46273.40667 | D133: 0.39 | E133: 4.05 | F133: 2591353.907 | G133: 57526.59333 | H133: 57526.59333 | I133: 198 | J133: 0 | K133: 0 | P133: 0
A134: 2032-12-01 | B134: 46694.51333 | C134: 46694.51333 | D134: 0.39 | E134: 4.44 | F134: 2638048.42 | G134: 57105.48667 | H134: 57105.48667 | I134: 204 | J134: 0 | K134: 1 | L134: 2032-12-01 | P134: 0
A135: 2033-01-01 | B135: 47111.18 | C135: 47111.18 | D135: 0.39 | E135: 0.39 | F135: 2685159.6 | G135: 56688.82 | H135: 56688.82 | I135: 210 | J135: 0 | K135: 2 | P135: 0
A136: 2033-02-01 | B136: 47527.84667 | C136: 47527.84667 | D136: 0.4 | E136: 0.79 | F136: 2732687.447 | G136: 56272.15333 | H136: 56272.15333 | I136: 215 | J136: 0 | K136: 3 | P136: 0
A137: 2033-03-01 | B137: 47944.51333 | C137: 47944.51333 | D137: 0.4 | E137: 1.19 | F137: 2780631.96 | G137: 55855.48667 | H137: 55855.48667 | I137: 221 | J137: 0 | K137: 4 | P137: 0
A138: 2033-04-01 | B138: 47946.10333 | C138: 47946.10333 | D138: 0.4 | E138: 1.59 | F138: 2828578.063 | G138: 55853.89667 | H138: 55853.89667 | I138: 224 | J138: 0 | K138: 5 | M138: 2033-04-01 | N138: 47946.10333 | O138: 55853.89667 | P138: 0.4
A139: 2033-05-01 | K139: 6 | P139: 0
A140: 2033-06-01 | K140: 7 | P140: 0
A141: 2033-07-01 | K141: 8 | P141: 0
A142: 2033-08-01 | K142: 9 | P142: 0
A143: 2033-09-01 | K143: 10 | P143: 0
A144: 2033-10-01 | K144: 11 | P144: 0
A145: 2033-11-01 | K145: 12 | P145: 0
A146: 2033-12-01 | K146: 13 | P146: 0
A147: 2034-01-01 | B147: =IF(K146>4,"",IF(AND(K146=4,MONTH(A147)=1),B146+E147-J147,IF(AND(K146=4,MONTH(A147)>1),B146+E147,IF(AND(K146<4,MONTH(A147)=12),$F$8+B146+E147,IF(AND(K146<4,MONTH(A147)=1),$F$8+B146-J147,$F$8+B146))))) ->  | D147: =IF(K146>4,"",IF((B146+$F$8-J147)<0,0,IF(MONTH(A147)=1,ROUND(($F$8+B146-J147)*$F$7*30/360,2),ROUND(($F$8+B146)*$F$7*30/360,2)))) ->  | E147: =IF(K146>4,"",IF(MONTH(A147)=1,D147,D147+E146)) ->  | I147: =IF(K146>4,"",IF(OR($F$1="Komfort 0,45%",$F$1="Komfort 1,95%",$F$1="Spezial"),ROUND((200*$F$9*1)/((H147/750)+($F$12*H147*H147)/(F147+3*C147)),0),ROUND((200*$F$9*(1-64*(($F$9-0.004*$F$2)/$F$2)*(C147/$F$2-$F$13)))/((H147/750)+($F$12*H147*H147)/(F147+3*C147)),0))) ->  | J147: =IF(K146>4,"",IF(MONTH(A147)=1,$F$6,0)) ->  | K147: =IF(AND(OR(I147=200,I147>200),OR(B147>$F$2*$F$13,B147=$F$2*$F$13)),K146+1,0) -> 14 | L147: =IF(K147=1,A147,"") ->  | M147: =IF(K147=5,A147,"") ->  | P147: 0
A148: =EDATE(A147,1) -> 2034-02-01 | C148: =IF(B148=0,0.0001,B148) ->  | F148: =IF(K147>4,"",IF(B148<0,0,F147+B148)) ->  | G148: =IF(K147>4,"",IF(B148<0,$F$2,$F$2-B148)) ->  | H148: =IF(K147>4,"",IF(G148>$F$2*0.5,G148,$F$2*0.5)) ->  | K148: 15 | N148: =IF(K148=5,B148,"") ->  | O148: =IF(K148=5,G148,"") ->  | P148: =IF(K148=5,D148,0) -> 0
A149: 2034-03-01 | K149: 16 | P149: 0
A150: 2034-04-01 | K150: 17 | P150: 0
A151: 2034-05-01 | K151: 18 | P151: 0
A152: 2034-06-01 | K152: 19 | P152: 0
A153: 2034-07-01 | K153: 20 | P153: 0
A154: 2034-08-01 | K154: 21 | P154: 0
A155: 2034-09-01 | K155: 22 | P155: 0
A156: 2034-10-01 | K156: 23 | P156: 0
A157: 2034-11-01 | K157: 24 | P157: 0
A158: 2034-12-01 | K158: 25 | P158: 0
A159: 2035-01-01 | K159: 26 | P159: 0
A160: 2035-02-01 | K160: 27 | P160: 0
A161: 2035-03-01 | K161: 28 | P161: 0
A162: 2035-04-01 | K162: 29 | P162: 0
A163: 2035-05-01 | K163: 30 | P163: 0
A164: 2035-06-01 | K164: 31 | P164: 0
A165: 2035-07-01 | K165: 32 | P165: 0
A166: 2035-08-01 | K166: 33 | P166: 0
A167: 2035-09-01 | K167: 34 | P167: 0
A168: 2035-10-01 | K168: 35 | P168: 0
A169: 2035-11-01 | K169: 36 | P169: 0
A170: 2035-12-01 | K170: 37 | P170: 0
A171: 2036-01-01 | K171: 38 | P171: 0
A172: 2036-02-01 | K172: 39 | P172: 0
A173: 2036-03-01 | K173: 40 | P173: 0
A174: 2036-04-01 | K174: 41 | P174: 0
A175: 2036-05-01 | K175: 42 | P175: 0
A176: 2036-06-01 | K176: 43 | P176: 0
A177: 2036-07-01 | K177: 44 | P177: 0
A178: 2036-08-01 | K178: 45 | P178: 0
A179: 2036-09-01 | B179: =IF(K178>4,"",IF(AND(K178=4,MONTH(A179)=1),B178+E179-J179,IF(AND(K178=4,MONTH(A179)>1),B178+E179,IF(AND(K178<4,MONTH(A179)=12),$F$8+B178+E179,IF(AND(K178<4,MONTH(A179)=1),$F$8+B178-J179,$F$8+B178))))) ->  | D179: =IF(K178>4,"",IF((B178+$F$8-J179)<0,0,IF(MONTH(A179)=1,ROUND(($F$8+B178-J179)*$F$7*30/360,2),ROUND(($F$8+B178)*$F$7*30/360,2)))) ->  | I179: =IF(K178>4,"",IF(OR($F$1="Komfort 0,45%",$F$1="Komfort 1,95%",$F$1="Spezial"),ROUND((200*$F$9*1)/((H179/750)+($F$12*H179*H179)/(F179+3*C179)),0),ROUND((200*$F$9*(1-64*(($F$9-0.004*$F$2)/$F$2)*(C179/$F$2-$F$13)))/((H179/750)+($F$12*H179*H179)/(F179+3*C179)),0))) ->  | J179: =IF(K178>4,"",IF(MONTH(A179)=1,$F$6,0)) ->  | K179: =IF(AND(OR(I179=200,I179>200),OR(B179>$F$2*$F$13,B179=$F$2*$F$13)),K178+1,0) -> 46 | P179: 0
A180: 2036-10-01 | K180: 47 | P180: 0
A181: =EDATE(A180,1) -> 2036-11-01 | K181: 48 | P181: 0
A182: 2036-12-01 | K182: 49 | P182: 0
A183: 2037-01-01 | K183: 50 | P183: 0
A184: 2037-02-01 | K184: 51 | P184: 0
A185: 2037-03-01 | K185: 52 | P185: 0
A186: 2037-04-01 | K186: 53 | P186: 0
A187: 2037-05-01 | K187: 54 | P187: 0
A188: 2037-06-01 | K188: 55 | P188: 0
A189: 2037-07-01 | K189: 56 | P189: 0
A190: 2037-08-01 | K190: 57 | P190: 0
A191: 2037-09-01 | K191: 58 | P191: 0
A192: 2037-10-01 | K192: 59 | P192: 0
A193: 2037-11-01 | K193: 60 | P193: 0
A194: 2037-12-01 | K194: 61 | P194: 0
A195: 2038-01-01 | K195: 62 | P195: 0
A196: 2038-02-01 | K196: 63 | P196: 0
A197: 2038-03-01 | K197: 64 | P197: 0
A198: 2038-04-01 | K198: 65 | P198: 0
A199: 2038-05-01 | K199: 66 | P199: 0
A200: 2038-06-01 | K200: 67 | M200: =IF(K200=5,A200,"") ->  | P200: 0
A201: 2038-07-01 | K201: 68 | P201: 0
A202: 2038-08-01 | K202: 69 | P202: 0
A203: 2038-09-01 | K203: 70 | P203: 0
... 3 more rows
